Departmental Area,Entity,Payment Date,Expense type,Expense Area,Supplier Name,Payment Reference, Invoice Distribution Amount ,Description,Supplier Type,Expenditure Type,,
UK Statistics Family,Office for National Statistics,06/04/2021,Business Rates,Property London,Westminster City Council,198785,"781,660.10",Business Rates,Large,Programme Expenditure,,
UK Statistics Family,Office for National Statistics,06/04/2021,Exp - Purchase Of Goods And Services Consultants,Digital Delivery,Xma Limited,198792,"6,356.40",Costs Associated with Mobile Devices,Large,Programme Expenditure,,
UK Statistics Family,Office for National Statistics,06/04/2021,Postage,Digital Delivery,Xma Limited,198792,"27,844.80",Costs Associated with Mobile Devices,Large,Programme Expenditure,,
UK Statistics Family,Office for National Statistics,06/04/2021,Exp - Purchase Of Goods/Services - IT Contractual Services,Digital Delivery,Xma Limited,198792,"140,197.91",Costs Associated with Mobile Devices,Large,Programme Expenditure,,
UK Statistics Family,Office for National Statistics,06/04/2021,Telecoms,Digital Delivery,Xma Limited,198792,"940,527.60",Costs Associated with Mobile Devices,Large,Programme Expenditure,,
UK Statistics Family,Office for National Statistics,06/04/2021,End User Software And Hardware,Digital Delivery,Xma Limited,198792,"2,577.76",Costs Associated with Mobile Devices,Large,Programme Expenditure,,
UK Statistics Family,Office for National Statistics,06/04/2021,Specialist User Software And Hardware,Digital Delivery,Xma Limited,198792,"186,262.78",Costs Associated with Mobile Devices,Large,Programme Expenditure,,
UK Statistics Family,Office for National Statistics,06/04/2021,IT Management And Change,Interviewer Support,Xma Limited,198792,913.02,Costs Associated with Mobile Devices,Large,Programme Expenditure,,
UK Statistics Family,Office for National Statistics,06/04/2021,Accommodation & Building Management,Interview Management IPS,Heathrow Airport,198793,-767.71,Rental Charges,Large,Programme Expenditure,,
UK Statistics Family,Office for National Statistics,06/04/2021,Rent Payable,Interview Management IPS,Heathrow Airport,198793,"49,947.08",Rental Charges,Large,Programme Expenditure,,
UK Statistics Family,Office for National Statistics,06/04/2021,Exp - Purchase Of Goods/Services - Contractors,Business Architecture,Certes Computing Ltd,198796,"16,983.83",Information Management Services,SME,Programme Expenditure,,
UK Statistics Family,Office for National Statistics,06/04/2021,Exp - Purchase Of Goods/Services - Contractors,Testing,Certes Computing Ltd,198796,"19,727.40",Information Management Services,SME,Programme Expenditure,,
UK Statistics Family,Office for National Statistics,06/04/2021,Exp - Purchase Of Goods/Services - Contractors,Security Advisory,Certes Computing Ltd,198796,"33,466.36",Information Management Services,SME,Programme Expenditure,,
UK Statistics Family,Office for National Statistics,06/04/2021,Exp - Purchase Of Goods/Services - Contractors,Security Advisory,Certes Computing Ltd,198796,"14,571.48",Information Management Services,SME,Programme Expenditure,,
UK Statistics Family,Office for National Statistics,06/04/2021,Exp - Purchase Of Goods/Services - Contractors,Security Advisory,Certes Computing Ltd,198796,"13,183.15",Information Management Services,SME,Programme Expenditure,,
UK Statistics Family,Office for National Statistics,06/04/2021,Exp - Purchase Of Goods/Services - Contractors,Data Architecture,Certes Computing Ltd,198796,"16,140.72",Information Management Services,SME,Programme Expenditure,,
UK Statistics Family,Office for National Statistics,06/04/2021,Exp - Purchase Of Goods/Services - Contractors,Strategy And Architecture,Certes Computing Ltd,198796,"16,652.40",Information Management Services,SME,Programme Expenditure,,
UK Statistics Family,Office for National Statistics,06/04/2021,Exp - Purchase Of Goods/Services - Contractors,Tech Delivery Legacy Sp,Certes Computing Ltd,198796,"14,091.12",Information Management Services,SME,Programme Expenditure,,
UK Statistics Family,Office for National Statistics,06/04/2021,Exp - Purchase Of Goods/Services - Contractors,Tech Delivery Legacy Sp,Certes Computing Ltd,198796,"14,398.56",Information Management Services,SME,Programme Expenditure,,
UK Statistics Family,Office for National Statistics,06/04/2021,Exp - Purchase Of Goods/Services - Contractors,Tech Delivery Legacy Sp,Certes Computing Ltd,198796,"6,533.16",Information Management Services,SME,Programme Expenditure,,
UK Statistics Family,Office for National Statistics,06/04/2021,Exp - Purchase Of Goods/Services - Contractors,IT Applications,Certes Computing Ltd,198796,"14,091.12",Information Management Services,SME,Programme Expenditure,,
UK Statistics Family,Office for National Statistics,06/04/2021,Exp - Purchase Of Goods/Services - Contractors,Digital Delivery,Certes Computing Ltd,198796,"13,738.85",Information Management Services,SME,Programme Expenditure,,
UK Statistics Family,Office for National Statistics,06/04/2021,Exp - Purchase Of Goods/Services - Contractors,Digital Delivery,Certes Computing Ltd,198796,"10,087.92",Information Management Services,SME,Programme Expenditure,,
UK Statistics Family,Office for National Statistics,06/04/2021,Exp - Purchase Of Goods/Services - Contractors,Digital Delivery,Certes Computing Ltd,198796,"13,034.29",Information Management Services,SME,Programme Expenditure,,
UK Statistics Family,Office for National Statistics,06/04/2021,Exp - Purchase Of Goods/Services - Contractors,Digital Delivery,Certes Computing Ltd,198796,"14,347.20",Information Management Services,SME,Programme Expenditure,,
UK Statistics Family,Office for National Statistics,06/04/2021,Exp - Purchase Of Goods/Services - Contractors,Business Architecture,La International,198797,"3,524.22",Information Management Services,SME,Programme Expenditure,,
UK Statistics Family,Office for National Statistics,06/04/2021,Exp - Short-Term Contract & Agency Staff - Full Cost,Census CCS Data Collection,La International,198797,"7,451.14",Information Management Services,SME,Programme Expenditure,,
UK Statistics Family,Office for National Statistics,06/04/2021,Exp - Purchase Of Goods And Services Consultants,Security Operations,La International,198797,"3,203.88",Information Management Services,SME,Programme Expenditure,,
UK Statistics Family,Office for National Statistics,06/04/2021,Exp - Purchase Of Goods/Services - Contractors,Data Architecture,La International,198797,"10,572.72",Information Management Services,SME,Programme Expenditure,,
UK Statistics Family,Office for National Statistics,06/04/2021,Exp - Purchase Of Goods/Services - Contractors,Tech Delivery Legacy Sp,La International,198797,"17,941.68",Information Management Services,SME,Programme Expenditure,,
UK Statistics Family,Office for National Statistics,06/04/2021,Exp - Purchase Of Goods/Services - Contractors,Tech Delivery Legacy Sp,La International,198797,"3,524.22",Information Management Services,SME,Programme Expenditure,,
UK Statistics Family,Office for National Statistics,06/04/2021,Exp - Purchase Of Goods/Services - Contractors,Digital Delivery,La International,198797,"6,463.80",Information Management Services,SME,Programme Expenditure,,
UK Statistics Family,Office for National Statistics,06/04/2021,Exp - Purchase Of Goods/Services - Contractors,Digital Delivery,La International,198797,"7,176.60",Information Management Services,SME,Programme Expenditure,,
UK Statistics Family,Office for National Statistics,06/04/2021,Exp - Purchase Of Goods/Services - Contractors,Digital Delivery,La International,198797,"10,764.90",Information Management Services,SME,Programme Expenditure,,
UK Statistics Family,Office for National Statistics,06/04/2021,Exp - Purchase Of Goods/Services - Contractors,Business Architecture,LA FOSSE ASSOCIATES LIMITED,198814,"34,154.94",Information Management Services,Large,Programme Expenditure,,
UK Statistics Family,Office for National Statistics,06/04/2021,Exp - Purchase Of Goods/Services - Contractors,Business Architecture,LA FOSSE ASSOCIATES LIMITED,198814,"6,375.00",Information Management Services,Large,Programme Expenditure,,
UK Statistics Family,Office for National Statistics,06/04/2021,Exp - Purchase Of Goods/Services - Contractors,Testing,LA FOSSE ASSOCIATES LIMITED,198814,"3,000.00",Information Management Services,Large,Programme Expenditure,,
UK Statistics Family,Office for National Statistics,06/04/2021,Exp - Purchase Of Goods/Services - Contractors,Operations,LA FOSSE ASSOCIATES LIMITED,198814,"3,300.00",Information Management Services,Large,Programme Expenditure,,
UK Statistics Family,Office for National Statistics,06/04/2021,Exp - Purchase Of Goods/Services - Contractors,Consultancy Management,LA FOSSE ASSOCIATES LIMITED,198814,"6,450.00",Information Management Services,Large,Programme Expenditure,,
UK Statistics Family,Office for National Statistics,06/04/2021,Exp - Purchase Of Goods/Services - Contractors,Programme Support,LA FOSSE ASSOCIATES LIMITED,198814,"3,000.00",Information Management Services,Large,Programme Expenditure,,
UK Statistics Family,Office for National Statistics,06/04/2021,Exp - Purchase Of Goods/Services - Contractors,Programme Support,LA FOSSE ASSOCIATES LIMITED,198814,"8,250.00",Information Management Services,Large,Programme Expenditure,,
UK Statistics Family,Office for National Statistics,06/04/2021,Exp - Purchase Of Goods/Services - Contractors,Digital Publishing,LA FOSSE ASSOCIATES LIMITED,198814,"8,700.00",Information Management Services,Large,Programme Expenditure,,
UK Statistics Family,Office for National Statistics,06/04/2021,Exp - Purchase Of Goods/Services - Contractors,INTEGRATED DATA STRATEGY AND DELIVERY,LA FOSSE ASSOCIATES LIMITED,198814,"3,450.00",Information Management Services,Large,Programme Expenditure,,
UK Statistics Family,Office for National Statistics,06/04/2021,Exp - Purchase Of Goods/Services - Contractors,Data Architecture,LA FOSSE ASSOCIATES LIMITED,198814,"3,240.00",Information Management Services,Large,Programme Expenditure,,
UK Statistics Family,Office for National Statistics,06/04/2021,Exp - Purchase Of Goods/Services - Contractors,Data Architecture,LA FOSSE ASSOCIATES LIMITED,198814,"3,450.00",Information Management Services,Large,Programme Expenditure,,
UK Statistics Family,Office for National Statistics,06/04/2021,Exp - Purchase Of Goods/Services - Contractors,CLOUD ARCHITECTURE,LA FOSSE ASSOCIATES LIMITED,198814,"1,440.00",Information Management Services,Large,Programme Expenditure,,
UK Statistics Family,Office for National Statistics,06/04/2021,Exp - Purchase Of Goods/Services - Contractors,Tech Delivery Legacy Sp,LA FOSSE ASSOCIATES LIMITED,198814,"2,880.00",Information Management Services,Large,Programme Expenditure,,
UK Statistics Family,Office for National Statistics,06/04/2021,Exp - Purchase Of Goods/Services - Contractors,Tech Delivery Legacy Sp,LA FOSSE ASSOCIATES LIMITED,198814,"3,600.00",Information Management Services,Large,Programme Expenditure,,
UK Statistics Family,Office for National Statistics,06/04/2021,Exp - Purchase Of Goods/Services - Contractors,Commercial Services,Gardiner & Theobald LLP,198823,"72,450.00",Temporary Staff,Large,Programme Expenditure,,
UK Statistics Family,Office for National Statistics,06/04/2021,Exp - Purchase Of Goods/Services - Contractors,Commercial Services,Gardiner & Theobald LLP,198823,"111,750.00",Temporary Staff,Large,Programme Expenditure,,
UK Statistics Family,Office for National Statistics,06/04/2021,Other Professional Services,Data As A Service,Hmrc,198859,"173,431.70",Data Acquisition,Large,Programme Expenditure,,
UK Statistics Family,Office for National Statistics,06/04/2021,Telecoms,IT Operations,Cdw Limited,198861,"44,002.80",Software Licenses,Large,Programme Expenditure,,
UK Statistics Family,Office for National Statistics,06/04/2021,EXP - PURCHASE OF GOODS/SERVICES -  NON IT CONTRACTUAL PAYMENTS,Data Collection Service,HH Associates Ltd,198867,"2,377,022.71",Print and Post Services,SME,Programme Expenditure,,
UK Statistics Family,Office for National Statistics,06/04/2021,Exp - Purchase Of Goods/Services - Contractors,Data Architecture,SmartSourcing Ltd,198870,"14,384.64",Information Management Services,SME,Programme Expenditure,,
UK Statistics Family,Office for National Statistics,06/04/2021,Exp - Purchase Of Goods/Services - Contractors,Data Architecture,SmartSourcing Ltd,198870,"27,960.00",Information Management Services,SME,Programme Expenditure,,
UK Statistics Family,Office for National Statistics,07/04/2021,Surveys,Social Surveys Division,Nisra,198887,"113,966.26",Statistical Services,Large,Programme Expenditure,,
UK Statistics Family,Office for National Statistics,07/04/2021,Other Goods And Services,Recruitment ,Linkedin,198888,"68,917.20",Subscription - Recruitment Adverts,Large,Programme Expenditure,,
UK Statistics Family,Office for National Statistics,07/04/2021,Exp - Purchase Of Goods/Services - Contractors,Tech Delivery Data As A Platform,Certes Computing Ltd,198889,"14,398.56",Information Management Services,SME,Programme Expenditure,,
UK Statistics Family,Office for National Statistics,07/04/2021,Exp - Purchase Of Goods/Services - Contractors,Social Surveys Division,Certes Computing Ltd,198889,"11,158.88",Information Management Services,SME,Programme Expenditure,,
UK Statistics Family,Office for National Statistics,07/04/2021,Exp - Purchase Of Goods/Services - Training & Development - Professional Membership Fees,Productivity Research And Professional Development,HM Treasury Group,198891,"64,817.43",Government Economic Service Membership,Large,Programme Expenditure,,
UK Statistics Family,Office for National Statistics,07/04/2021,Exp - Purchase Of Goods/Services - Training & Development - Professional Membership Fees,Analysis Microdata And Engagement,HM Treasury Group,198891,"1,498.38",Government Economic Service Membership,Large,Programme Expenditure,,
UK Statistics Family,Office for National Statistics,07/04/2021,Exp - Purchase Of Goods/Services - Training & Development - Professional Membership Fees,Crime Income And Wealth,HM Treasury Group,198891,"1,498.37",Government Economic Service Membership,Large,Programme Expenditure,,
UK Statistics Family,Office for National Statistics,07/04/2021,FM Contract Payments,Researcher Support And Data Access ,Gresham Office Furniture Limited,198896,"11,671.46",Office Furniture,SME,Programme Expenditure,,
UK Statistics Family,Office for National Statistics,07/04/2021,FM Contract Payments,Property London,Gresham Office Furniture Limited,198896,"6,912.00",Office Furniture,SME,Programme Expenditure,,
UK Statistics Family,Office for National Statistics,07/04/2021,Exp - Purchase Of Goods/Services - Accommodation & Bldng Management - Miscellaneous Minor Works,Property London,Gresham Office Furniture Limited,198896,"19,244.40",Office Furniture,SME,Programme Expenditure,,
UK Statistics Family,Office for National Statistics,07/04/2021,"ICT Outsourcing, Maintenance And Support",IT Operations,CTS (Cloud Technology Solutions Ltd),198897,"10,232.75",DST Infrastructure Preparation,Large,Programme Expenditure,,
UK Statistics Family,Office for National Statistics,07/04/2021,"ICT Outsourcing, Maintenance And Support",Digital Delivery,CTS (Cloud Technology Solutions Ltd),198897,"24,671.16",DST Infrastructure Preparation,Large,Programme Expenditure,,
UK Statistics Family,Office for National Statistics,07/04/2021,EXP - PURCHASE OF GOODS/SERVICES -  NON IT CONTRACTUAL PAYMENTS,Data Collection Service,Good Things Foundation,198900,"454,304.40",Census Assisted Digital Services,SME,Programme Expenditure,,
UK Statistics Family,Office for National Statistics,07/04/2021,Exp - Purchase Of Goods/Services - Contractors,Business Architecture,Talent International,198901,"15,816.33",Information Management Services,SME,Programme Expenditure,,
UK Statistics Family,Office for National Statistics,07/04/2021,Exp - Short-Term Contract & Agency Staff - Full Cost,Census CCS Data Collection,Talent International,198901,"1,570.87",Information Management Services,SME,Programme Expenditure,,
UK Statistics Family,Office for National Statistics,07/04/2021,Exp - Purchase Of Goods/Services - Contractors,Programme Support,Talent International,198901,"11,000.00",Information Management Services,SME,Programme Expenditure,,
UK Statistics Family,Office for National Statistics,07/04/2021,Exp - Purchase Of Goods/Services - Contractors,Researcher Support And Data Access ,Talent International,198901,"15,600.00",Information Management Services,SME,Programme Expenditure,,
UK Statistics Family,Office for National Statistics,07/04/2021,Exp - Purchase Of Goods/Services - Contractors,Data Architecture,Talent International,198901,"49,008.00",Information Management Services,SME,Programme Expenditure,,
UK Statistics Family,Office for National Statistics,07/04/2021,Exp - Purchase Of Goods/Services - Contractors,Strategy And Architecture,Talent International,198901,"14,376.00",Information Management Services,SME,Programme Expenditure,,
UK Statistics Family,Office for National Statistics,07/04/2021,Exp - Purchase Of Goods/Services - Contractors,Tech Delivery Legacy Sp,Talent International,198901,"14,820.00",Information Management Services,SME,Programme Expenditure,,
UK Statistics Family,Office for National Statistics,07/04/2021,Exp - Purchase Of Goods/Services - Contractors,Tech Delivery Next Gen IT And Infrastructure,Talent International,198901,"14,399.76",Information Management Services,SME,Programme Expenditure,,
UK Statistics Family,Office for National Statistics,07/04/2021,Exp - Purchase Of Goods/Services - Contractors,Digital Delivery,Talent International,198901,"12,096.00",Information Management Services,SME,Programme Expenditure,,
UK Statistics Family,Office for National Statistics,07/04/2021,Exp - Short-Term Contract & Agency Staff - Full Cost,Survey Management,Talent International,198901,"5,381.64",Information Management Services,SME,Programme Expenditure,,
UK Statistics Family,Office for National Statistics,07/04/2021,Exp - Short-Term Contract & Agency Staff - Full Cost,Labour Market,Talent International,198901,"4,008.48",Information Management Services,SME,Programme Expenditure,,
UK Statistics Family,Office for National Statistics,07/04/2021,Exp - Purchase Of Goods/Services - IT Contractual Services,Tech Delivery Next Gen IT And Infrastructure,Diegesis Limited,198903,"69,030.00",Information Management Services,Large,Programme Expenditure,,
UK Statistics Family,Office for National Statistics,07/04/2021,Exp - Purchase Of Goods/Services - IT Contractual Services,IT Applications,Diegesis Limited,198903,"149,400.00",Information Management Services,Large,Programme Expenditure,,
UK Statistics Family,Office for National Statistics,07/04/2021,Marketing & Media,Stakeholder Engagement And Comms,M&C Saatchi UK Ltd,198904,"459,874.07",Marketing Services,Large,Programme Expenditure,,
UK Statistics Family,Office for National Statistics,08/04/2021,Exp - Purchase Of Goods/Services - Contractors,Testing,Concept Information Technology Ltd T/A Concept Resourcing,198911,"13,903.22",Information Management Services,Large,Programme Expenditure,,
UK Statistics Family,Office for National Statistics,08/04/2021,Exp - Short-Term Contract & Agency Staff - Full Cost,Census CCS Data Collection,Concept Information Technology Ltd T/A Concept Resourcing,198911,"2,790.48",Information Management Services,Large,Programme Expenditure,,
UK Statistics Family,Office for National Statistics,08/04/2021,Exp - Short-Term Contract & Agency Staff - Full Cost,Census CCS Data Collection,Concept Information Technology Ltd T/A Concept Resourcing,198911,"2,748.65",Information Management Services,Large,Programme Expenditure,,
UK Statistics Family,Office for National Statistics,08/04/2021,Exp - Short-Term Contract & Agency Staff - Full Cost,Census CCS Data Collection,Concept Information Technology Ltd T/A Concept Resourcing,198911,"2,277.23",Information Management Services,Large,Programme Expenditure,,
UK Statistics Family,Office for National Statistics,08/04/2021,Exp - Short-Term Contract & Agency Staff - Full Cost,Covid Infection Survey,Concept Information Technology Ltd T/A Concept Resourcing,198911,"6,716.24",Information Management Services,Large,Programme Expenditure,,
UK Statistics Family,Office for National Statistics,08/04/2021,Exp - Short-Term Contract & Agency Staff - Full Cost,Covid Infection Survey,Concept Information Technology Ltd T/A Concept Resourcing,198911,"7,314.84",Information Management Services,Large,Programme Expenditure,,
UK Statistics Family,Office for National Statistics,08/04/2021,Exp - Purchase Of Goods/Services - Contractors,Covid Infection Survey,Concept Information Technology Ltd T/A Concept Resourcing,198911,533.66,Information Management Services,Large,Programme Expenditure,,
UK Statistics Family,Office for National Statistics,08/04/2021,Exp - Short-Term Contract & Agency Staff - Full Cost,Data Architecture,Concept Information Technology Ltd T/A Concept Resourcing,198911,"5,899.88",Information Management Services,Large,Programme Expenditure,,
UK Statistics Family,Office for National Statistics,08/04/2021,Exp - Purchase Of Goods/Services - Contractors,Data Architecture,Concept Information Technology Ltd T/A Concept Resourcing,198911,"14,160.00",Information Management Services,Large,Programme Expenditure,,
UK Statistics Family,Office for National Statistics,08/04/2021,Exp - Purchase Of Goods/Services - Contractors,CLOUD ARCHITECTURE,Concept Information Technology Ltd T/A Concept Resourcing,198911,"13,038.00",Information Management Services,Large,Programme Expenditure,,
UK Statistics Family,Office for National Statistics,08/04/2021,Exp - Purchase Of Goods/Services - IT Contractual Services,Tech Delivery Legacy Sp,Concept Information Technology Ltd T/A Concept Resourcing,198911,"3,000.00",Information Management Services,Large,Programme Expenditure,,
UK Statistics Family,Office for National Statistics,08/04/2021,Exp - Short-Term Contract & Agency Staff - Full Cost,Survey Management,Concept Information Technology Ltd T/A Concept Resourcing,198911,"2,009.81",Information Management Services,Large,Programme Expenditure,,
UK Statistics Family,Office for National Statistics,08/04/2021,Exp - Short-Term Contract & Agency Staff - Full Cost,Prices Division,Concept Information Technology Ltd T/A Concept Resourcing,198911,"2,014.87",Information Management Services,Large,Programme Expenditure,,
UK Statistics Family,Office for National Statistics,08/04/2021,Exp - Short-Term Contract & Agency Staff - Full Cost,Prices Division,Concept Information Technology Ltd T/A Concept Resourcing,198911,"11,953.62",Information Management Services,Large,Programme Expenditure,,
UK Statistics Family,Office for National Statistics,08/04/2021,Print and Post,Social Surveys Division,APS Group,198914,"176,555.21",Mailing Services,Large,Programme Expenditure,,
UK Statistics Family,Office for National Statistics,08/04/2021,"ICT Outsourcing, Maintenance And Support",IT Operations,Actian Europe Limited,198916,"727,225.80",Software Licenses,SME,Programme Expenditure,,
UK Statistics Family,Office for National Statistics,08/04/2021,Hosting,IT Operations,Amazon Web Services Inc,198918,"134,141.68",Information Management Services,Large,Programme Expenditure,,
UK Statistics Family,Office for National Statistics,08/04/2021,Exp - Short-Term Contract & Agency Staff - Full Cost,2023 CENSUS DATA TRANSFORMATION,Talent International,198919,"8,394.73",Information Management Services,SME,Programme Expenditure,,
UK Statistics Family,Office for National Statistics,08/04/2021,Exp - Purchase Of Goods/Services - Contractors,Business Architecture,Talent International,198919,"10,452.50",Information Management Services,SME,Programme Expenditure,,
UK Statistics Family,Office for National Statistics,08/04/2021,Exp - Short-Term Contract & Agency Staff - Full Cost,Census CCS Data Collection,Talent International,198919,"3,141.74",Information Management Services,SME,Programme Expenditure,,
UK Statistics Family,Office for National Statistics,08/04/2021,Exp - Short-Term Contract & Agency Staff - Full Cost,Census CCS Data Collection,Talent International,198919,"13,562.75",Information Management Services,SME,Programme Expenditure,,
UK Statistics Family,Office for National Statistics,08/04/2021,Exp - Short-Term Contract & Agency Staff - Full Cost,Census CCS Data Collection,Talent International,198919,"21,691.64",Information Management Services,SME,Programme Expenditure,,
UK Statistics Family,Office for National Statistics,08/04/2021,Exp - Short-Term Contract & Agency Staff - Full Cost,CENSUS PARTNERSHIPS AND ENGAGEMENT,Talent International,198919,"4,237.54",Information Management Services,SME,Programme Expenditure,,
UK Statistics Family,Office for National Statistics,08/04/2021,Exp - Purchase Of Goods/Services - Contractors,Finance,Talent International,198919,"13,200.00",Information Management Services,SME,Programme Expenditure,,
UK Statistics Family,Office for National Statistics,08/04/2021,Exp - Purchase Of Goods/Services - Contractors,Data Architecture,Talent International,198919,"8,844.00",Information Management Services,SME,Programme Expenditure,,
UK Statistics Family,Office for National Statistics,08/04/2021,Exp - Purchase Of Goods/Services - Contractors,CLOUD ARCHITECTURE,Talent International,198919,"15,210.00",Information Management Services,SME,Programme Expenditure,,
UK Statistics Family,Office for National Statistics,08/04/2021,Exp - Purchase Of Goods/Services - Contractors,CDIO UNGP,Talent International,198919,"29,999.76",Information Management Services,SME,Programme Expenditure,,
UK Statistics Family,Office for National Statistics,08/04/2021,Exp - Purchase Of Goods/Services - Contractors,Strategy And Architecture,Talent International,198919,"12,000.00",Information Management Services,SME,Programme Expenditure,,
UK Statistics Family,Office for National Statistics,08/04/2021,Exp - Purchase Of Goods/Services - Contractors,Tech Delivery Legacy Sp,Talent International,198919,"14,399.76",Information Management Services,SME,Programme Expenditure,,
UK Statistics Family,Office for National Statistics,08/04/2021,Exp - Purchase Of Goods/Services - Contractors,Tech Delivery Data As A Platform,Talent International,198919,"14,399.76",Information Management Services,SME,Programme Expenditure,,
UK Statistics Family,Office for National Statistics,08/04/2021,Exp - Purchase Of Goods/Services - Contractors,IT Applications,Talent International,198919,"29,999.76",Information Management Services,SME,Programme Expenditure,,
UK Statistics Family,Office for National Statistics,08/04/2021,Exp - Purchase Of Goods/Services - Contractors,Digital Delivery,Talent International,198919,"14,376.00",Information Management Services,SME,Programme Expenditure,,
UK Statistics Family,Office for National Statistics,08/04/2021,Exp - Short-Term Contract & Agency Staff - Full Cost,Interviewer Management TU,Talent International,198919,"5,223.85",Information Management Services,SME,Programme Expenditure,,
UK Statistics Family,Office for National Statistics,08/04/2021,Exp - Short-Term Contract & Agency Staff - Full Cost,Survey Management,Talent International,198919,"5,109.62",Information Management Services,SME,Programme Expenditure,,
UK Statistics Family,Office for National Statistics,08/04/2021,Software Licences At Cost - Additions,Tech Delivery Data As A Platform,Insight Direct,198926,"945,182.40",Software Licenses,Large,Programme Expenditure,,
UK Statistics Family,Office for National Statistics,08/04/2021,End User Software And Hardware,Tech Delivery Data As A Platform,Insight Direct,198926,"45,346.42",Software Licenses,Large,Programme Expenditure,,
UK Statistics Family,Office for National Statistics,08/04/2021,End User Software And Hardware,IT Operations,Insight Direct,198926,"689,012.40",Software Licenses,Large,Programme Expenditure,,
UK Statistics Family,Office for National Statistics,09/04/2021,EXP - PURCHASE OF GOODS/SERVICES -  NON IT CONTRACTUAL PAYMENTS,Covid Infection Survey,Public Health England,198934,"1,594,789.60",Statistical Services,Large,Programme Expenditure,,
UK Statistics Family,Office for National Statistics,09/04/2021,Exp - Purchase Of Goods/Services - Contractors,Testing,Certes Computing Ltd,198935,"15,201.00",Information Management Services,SME,Programme Expenditure,,
UK Statistics Family,Office for National Statistics,09/04/2021,Exp - Purchase Of Goods/Services - Contractors,Commercial Services,Certes Computing Ltd,198935,"10,674.60",Information Management Services,SME,Programme Expenditure,,
UK Statistics Family,Office for National Statistics,09/04/2021,"ICT Outsourcing, Maintenance And Support",IT Operations,Computacenter (Uk) Limited,198938,"205,135.43",Information Management Services,Large,Programme Expenditure,,
UK Statistics Family,Office for National Statistics,09/04/2021,End User Software And Hardware,IT Operations,Computacenter (Uk) Limited,198938,"2,791.80",Information Management Services,Large,Programme Expenditure,,
UK Statistics Family,Office for National Statistics,09/04/2021,Print and Post,Social Survey Transformation Newport,APS Group,198941,"366,026.35",Mailing Services,Large,Programme Expenditure,,
UK Statistics Family,Office for National Statistics,09/04/2021,Print and Post,Social Survey Transformation Newport,APS Group,198941,"7,848.99",Mailing Services,Large,Programme Expenditure,,
UK Statistics Family,Office for National Statistics,09/04/2021,End User Software And Hardware,IT Operations,CTS (Cloud Technology Solutions Ltd),198943,"129,600.00",DST Infrastructure Preparation,Large,Programme Expenditure,,
UK Statistics Family,Office for National Statistics,09/04/2021,End User Software And Hardware,IT Operations,CTS (Cloud Technology Solutions Ltd),198943,"1,324.80",DST Infrastructure Preparation,Large,Programme Expenditure,,
UK Statistics Family,Office for National Statistics,09/04/2021,EXP - PURCHASE OF GOODS/SERVICES -  NON IT CONTRACTUAL PAYMENTS,Data Collection Service,HH Associates Ltd,198945,"2,054,176.22",Print and Post Services,SME,Programme Expenditure,,
UK Statistics Family,Office for National Statistics,09/04/2021,Exp - Short-Term Contract & Agency Staff - Full Cost,Census CCS Data Collection,Talent International,198946,"5,533.58",Information Management Services,SME,Programme Expenditure,,
UK Statistics Family,Office for National Statistics,09/04/2021,Exp - Short-Term Contract & Agency Staff - Full Cost,Census CCS Data Collection,Talent International,198946,"1,604.53",Information Management Services,SME,Programme Expenditure,,
UK Statistics Family,Office for National Statistics,09/04/2021,Exp - Purchase Of Goods/Services - Contractors,Digital Publishing,Talent International,198946,"38,220.00",Information Management Services,SME,Programme Expenditure,,
UK Statistics Family,Office for National Statistics,09/04/2021,Exp - Short-Term Contract & Agency Staff - Full Cost,Census CCS Data Collection,Parity Resources Limited,198947,"3,585.52",Information Management Services,Large,Programme Expenditure,,
UK Statistics Family,Office for National Statistics,09/04/2021,Exp - Short-Term Contract & Agency Staff - Full Cost,Census CCS Data Collection,Parity Resources Limited,198947,732.6,Information Management Services,Large,Programme Expenditure,,
UK Statistics Family,Office for National Statistics,09/04/2021,Exp - Purchase Of Goods/Services - Contractors,Programme Delivery,Parity Resources Limited,198947,"3,310.50",Information Management Services,Large,Programme Expenditure,,
UK Statistics Family,Office for National Statistics,09/04/2021,Exp - Purchase Of Goods/Services - Contractors,Programme Support,Parity Resources Limited,198947,"5,987.60",Information Management Services,Large,Programme Expenditure,,
UK Statistics Family,Office for National Statistics,09/04/2021,Exp - Purchase Of Goods/Services - Contractors,Covid Infection Survey,Parity Resources Limited,198947,"6,000.00",Information Management Services,Large,Programme Expenditure,,
UK Statistics Family,Office for National Statistics,09/04/2021,Exp - Purchase Of Goods/Services - Contractors,Digital Publishing,Parity Resources Limited,198947,"12,960.00",Information Management Services,Large,Programme Expenditure,,
UK Statistics Family,Office for National Statistics,09/04/2021,Exp - Purchase Of Goods/Services - Contractors,Analysis Microdata And Engagement,Parity Resources Limited,198947,"1,480.22",Information Management Services,Large,Programme Expenditure,,
UK Statistics Family,Office for National Statistics,09/04/2021,Exp - Purchase Of Goods/Services - Contractors,Researcher Support And Data Access ,Parity Resources Limited,198947,"5,414.80",Information Management Services,Large,Programme Expenditure,,
UK Statistics Family,Office for National Statistics,09/04/2021,Exp - Purchase Of Goods/Services - Contractors,Commercial Services,Parity Resources Limited,198947,"4,165.20",Information Management Services,Large,Programme Expenditure,,
UK Statistics Family,Office for National Statistics,09/04/2021,Exp - Short-Term Contract & Agency Staff - Full Cost,Recruitment ,Parity Resources Limited,198947,"1,465.20",Information Management Services,Large,Programme Expenditure,,
UK Statistics Family,Office for National Statistics,09/04/2021,Exp - Purchase Of Goods/Services - Contractors,INTEGRATED DATA STRATEGY AND DELIVERY,Parity Resources Limited,198947,"21,642.00",Information Management Services,Large,Programme Expenditure,,
UK Statistics Family,Office for National Statistics,09/04/2021,Exp - Short-Term Contract & Agency Staff - Full Cost,Data Architecture,Parity Resources Limited,198947,"4,395.60",Information Management Services,Large,Programme Expenditure,,
UK Statistics Family,Office for National Statistics,09/04/2021,Exp - Purchase Of Goods/Services - Contractors,Data Architecture,Parity Resources Limited,198947,"7,185.12",Information Management Services,Large,Programme Expenditure,,
UK Statistics Family,Office for National Statistics,09/04/2021,Exp - Short-Term Contract & Agency Staff - Full Cost,Digital Delivery,Parity Resources Limited,198947,"1,231.92",Information Management Services,Large,Programme Expenditure,,
UK Statistics Family,Office for National Statistics,09/04/2021,Exp - Purchase Of Goods/Services - Contractors,Digital Delivery,Parity Resources Limited,198947,"3,430.50",Information Management Services,Large,Programme Expenditure,,
UK Statistics Family,Office for National Statistics,09/04/2021,Exp - Purchase Of Goods/Services - Contractors,Digital Delivery,Parity Resources Limited,198947,"5,446.80",Information Management Services,Large,Programme Expenditure,,
UK Statistics Family,Office for National Statistics,09/04/2021,Exp - Purchase Of Goods/Services - Contractors,Data Science Campus,Parity Resources Limited,198947,"1,043.40",Information Management Services,Large,Programme Expenditure,,
UK Statistics Family,Office for National Statistics,09/04/2021,Exp - Short-Term Contract & Agency Staff - Full Cost,Public Sector And Households,Parity Resources Limited,198947,"2,002.44",Information Management Services,Large,Programme Expenditure,,
UK Statistics Family,Office for National Statistics,09/04/2021,Marketing & Media,Stakeholder Engagement And Comms,M&C Saatchi UK Ltd,198949,"671,217.15",Marketing Services,Large,Programme Expenditure,,
UK Statistics Family,Office for National Statistics,09/04/2021,Exp - Purchase Of Goods/Services - IT Contractual Services,Tech Delivery Data As A Platform,Insight Direct,198950,"50,721.66",Software Licenses,Large,Programme Expenditure,,
UK Statistics Family,Office for National Statistics,09/04/2021,End User Software And Hardware,IT Operations,Insight Direct,198950,"197,757.29",Software Licenses,Large,Programme Expenditure,,
UK Statistics Family,Office for National Statistics,12/04/2021,Exp - Purchase Of Goods/Services - IT Contractual Services,Strategy And Architecture,Ibm United Kingdom Ltd,199150,"40,884.42",Information Management Services,Large,Programme Expenditure,,
UK Statistics Family,Office for National Statistics,12/04/2021,Surveys,Strategy And Engagement,Iff Research,199153,"278,939.38",Statistical Services,Large,Programme Expenditure,,
UK Statistics Family,Office for National Statistics,12/04/2021,Exp - Purchase Of Goods/Services - Contractors,INTEGRATED DATA STRATEGY AND DELIVERY,Parity Resources Limited,199157,"45,989.26",Information Management Services,Large,Programme Expenditure,,
UK Statistics Family,Office for National Statistics,12/04/2021,Exp - Purchase Of Goods/Services - IT Contractual Services,IT Operations,Insight Direct,199158,"53,814.44",Information Management Services,Large,Programme Expenditure,,Karla to confirm what his is 
UK Statistics Family,Office for National Statistics,13/04/2021,Exp - Purchase Of Goods And Services Consultants,Business Architecture Transformation And Statistical Strategy,SmartSourcing Ltd,199160,"15,852.34",Information Management Services,SME,Programme Expenditure,,
UK Statistics Family,Office for National Statistics,13/04/2021,Exp - Purchase Of Goods/Services - Contractors,Tech Delivery Legacy Sp,SmartSourcing Ltd,199160,"11,651.90",Information Management Services,SME,Programme Expenditure,,
UK Statistics Family,Office for National Statistics,13/04/2021,"ICT Outsourcing, Maintenance And Support",IT Operations,Insight Direct,199161,"18,143.71",Software Licenses,Large,Programme Expenditure,,
UK Statistics Family,Office for National Statistics,13/04/2021,End User Software And Hardware,IT Operations,Insight Direct,199161,"731,631.35",Software Licenses,Large,Programme Expenditure,,
UK Statistics Family,Office for National Statistics,13/04/2021,Exp - Purchase Of Goods/Services - IT Contractual Services,Digital Publishing,Armakuni Ltd,199162,"58,680.00",Information Management Services,SME,Programme Expenditure,,
UK Statistics Family,Office for National Statistics,13/04/2021,Surveys,Census & Soc Methodology Dd,University of Southampton,199165,"28,000.00",Statistical Services,SME,Programme Expenditure,,
UK Statistics Family,Office for National Statistics,13/04/2021,Exp - Purchase Of Goods/Services - Contractors,Data Architecture,Empiric Solutions Limited,199167,"20,010.00",Information Management Services,Large,Programme Expenditure,,
UK Statistics Family,Office for National Statistics,13/04/2021,Exp - Purchase Of Goods/Services - Contractors,IT Applications,Empiric Solutions Limited,199167,"22,080.00",Information Management Services,Large,Programme Expenditure,,
UK Statistics Family,Office for National Statistics,13/04/2021,Exp - Purchase Of Goods/Services - IT Contractual Services,IT Operations,Softcat,199173,"43,855.78",Information Management Services,SME,Programme Expenditure,,
UK Statistics Family,Office for National Statistics,13/04/2021,EXP - PURCHASE OF GOODS/SERVICES -  NON IT CONTRACTUAL PAYMENTS,Data Collection Service,Royal Mail Group Ltd,199176,"401,865.00",Postage,Large,Programme Expenditure,,
UK Statistics Family,Office for National Statistics,13/04/2021,Postage,Survey Processing Centre,Royal Mail Group Ltd,199176,"1,106.45",Postage,Large,Programme Expenditure,,
UK Statistics Family,Office for National Statistics,13/04/2021,Accommodation & Building Management,Interview Management IPS,London Borough of Hillingdon,199178,"36,327.20",Business Rates,Large,Programme Expenditure,,
UK Statistics Family,Office for National Statistics,13/04/2021,FM Contract Payments,Researcher Support And Data Access ,Gresham Office Furniture Limited,199182,"31,721.10",Office Furniture,SME,Programme Expenditure,,
UK Statistics Family,Office for National Statistics,13/04/2021,Exp - Purchase Of Goods/Services - Accommodation & Bldng Management - Miscellaneous Minor Works,Property London,Gresham Office Furniture Limited,199182,540,Office Furniture,SME,Programme Expenditure,,
UK Statistics Family,Office for National Statistics,13/04/2021,EXP - PURCHASE OF GOODS/SERVICES -  NON IT CONTRACTUAL PAYMENTS,Data Collection Service,Good Things Foundation,199185,"584,344.40",Census Assisted Digital Services,SME,Programme Expenditure,,
UK Statistics Family,Office for National Statistics,13/04/2021,Marketing & Media,Stakeholder Engagement And Comms,Manning Gottlieb,199186,"326,285.52",Marketing Services,Large,Programme Expenditure,,
UK Statistics Family,Office for National Statistics,13/04/2021,Exp - Purchase Of Goods/Services - IT Contractual Services,IT Operations,Methods Business & Digital Technology Ltd,199187,"42,600.00",Information Management Services,Large,Programme Expenditure,,
UK Statistics Family,Office for National Statistics,13/04/2021,Exp - Purchase Of Goods/Services - Contractors,Finance,Robertson Bell,199190,"21,798.72",Temporary Staff,SME,Programme Expenditure,,
UK Statistics Family,Office for National Statistics,13/04/2021,Exp - Purchase Of Goods/Services - Contractors,Finance,Robertson Bell,199190,"14,140.80",Temporary Staff,SME,Programme Expenditure,,
UK Statistics Family,Office for National Statistics,14/04/2021,Exp - Short-Term Contract & Agency Staff - Full Cost,Census CCS Data Collection,La International,199273,992.34,Information Management Services,SME,Programme Expenditure,,
UK Statistics Family,Office for National Statistics,14/04/2021,Exp - Short-Term Contract & Agency Staff - Full Cost,Programme Delivery,La International,199273,"1,230.77",Information Management Services,SME,Programme Expenditure,,
UK Statistics Family,Office for National Statistics,14/04/2021,Exp - Purchase Of Goods/Services - Contractors,INTEGRATED DATA STRATEGY AND DELIVERY,La International,199273,"3,450.00",Information Management Services,SME,Programme Expenditure,,
UK Statistics Family,Office for National Statistics,14/04/2021,Exp - Purchase Of Goods/Services - Contractors,Data Architecture,La International,199273,"7,112.52",Information Management Services,SME,Programme Expenditure,,
UK Statistics Family,Office for National Statistics,14/04/2021,Exp - Purchase Of Goods/Services - Contractors,Data Architecture,La International,199273,"3,524.22",Information Management Services,SME,Programme Expenditure,,
UK Statistics Family,Office for National Statistics,14/04/2021,Exp - Purchase Of Goods/Services - Contractors,Data Architecture,La International,199273,"3,588.30",Information Management Services,SME,Programme Expenditure,,
UK Statistics Family,Office for National Statistics,14/04/2021,Exp - Purchase Of Goods/Services - Contractors,Data Architecture,La International,199273,"24,028.92",Information Management Services,SME,Programme Expenditure,,
UK Statistics Family,Office for National Statistics,14/04/2021,Exp - Purchase Of Goods/Services - Contractors,Tech Delivery Legacy Sp,La International,199273,"7,048.44",Information Management Services,SME,Programme Expenditure,,
UK Statistics Family,Office for National Statistics,14/04/2021,Exp - Purchase Of Goods/Services - Contractors,Testing,Malikshaw Interim & Executive,199274,"51,662.24",Information Management Services,SME,Programme Expenditure,,
UK Statistics Family,Office for National Statistics,14/04/2021,Exp - Short-Term Contract & Agency Staff - Full Cost,Census CCS Data Collection,Malikshaw Interim & Executive,199274,"42,998.38",Information Management Services,SME,Programme Expenditure,,
UK Statistics Family,Office for National Statistics,14/04/2021,Exp - Short-Term Contract & Agency Staff - Full Cost,Census CCS Data Collection,Malikshaw Interim & Executive,199274,"19,054.54",Information Management Services,SME,Programme Expenditure,,
UK Statistics Family,Office for National Statistics,14/04/2021,Exp - Purchase Of Goods/Services - Contractors,Programme Support,Malikshaw Interim & Executive,199274,"12,311.21",Information Management Services,SME,Programme Expenditure,,
UK Statistics Family,Office for National Statistics,14/04/2021,Exp - Short-Term Contract & Agency Staff - Full Cost,Data Architecture,Malikshaw Interim & Executive,199274,"5,714.28",Information Management Services,SME,Programme Expenditure,,
UK Statistics Family,Office for National Statistics,14/04/2021,Exp - Purchase Of Goods/Services - Contractors,Data Architecture,Malikshaw Interim & Executive,199274,"16,560.00",Information Management Services,SME,Programme Expenditure,,
UK Statistics Family,Office for National Statistics,14/04/2021,Exp - Purchase Of Goods/Services - Contractors,Data Architecture,Malikshaw Interim & Executive,199274,"32,394.95",Information Management Services,SME,Programme Expenditure,,
UK Statistics Family,Office for National Statistics,14/04/2021,Exp - Purchase Of Goods/Services - Contractors,CLOUD ARCHITECTURE,Malikshaw Interim & Executive,199274,"32,832.00",Information Management Services,SME,Programme Expenditure,,
UK Statistics Family,Office for National Statistics,14/04/2021,Exp - Purchase Of Goods/Services - Contractors,Strategy And Architecture,Malikshaw Interim & Executive,199274,"12,345.60",Information Management Services,SME,Programme Expenditure,,
UK Statistics Family,Office for National Statistics,14/04/2021,Exp - Purchase Of Goods/Services - Contractors,Tech Delivery Legacy Sp,Malikshaw Interim & Executive,199274,"15,814.25",Information Management Services,SME,Programme Expenditure,,
UK Statistics Family,Office for National Statistics,14/04/2021,Exp - Purchase Of Goods/Services - Contractors,Tech Delivery Legacy Sp,Malikshaw Interim & Executive,199274,"16,560.00",Information Management Services,SME,Programme Expenditure,,
UK Statistics Family,Office for National Statistics,14/04/2021,Exp - Purchase Of Goods/Services - Contractors,Data Science Campus,Malikshaw Interim & Executive,199274,"13,938.00",Information Management Services,SME,Programme Expenditure,,
UK Statistics Family,Office for National Statistics,14/04/2021,EXP - PURCHASE OF GOODS/SERVICES -  NON IT CONTRACTUAL PAYMENTS,Data Collection Service,Leidos Innovations UK Limited,199275,"1,308,089.38",Questionnaire Management,Large,Programme Expenditure,,
UK Statistics Family,Office for National Statistics,14/04/2021,"ICT Outsourcing, Maintenance And Support",Crime Income And Wealth,Panlogic UK,199277,"27,781.14",Information Management Services,SME,Programme Expenditure,,
UK Statistics Family,Office for National Statistics,14/04/2021,Surveys,Crime Statistics,Kantar UK Ltd,199278,"221,842.80",Statistical Services,Large,Programme Expenditure,,
UK Statistics Family,Office for National Statistics,14/04/2021,Exp - Short-Term Contract & Agency Staff - Full Cost,Stakeholder Engagement And Comms,Parity Resources Limited,199281,"3,417.00",Information Management Services,Large,Programme Expenditure,,
UK Statistics Family,Office for National Statistics,14/04/2021,Exp - Purchase Of Goods/Services - Contractors,Testing,Parity Resources Limited,199281,"14,569.20",Information Management Services,Large,Programme Expenditure,,
UK Statistics Family,Office for National Statistics,14/04/2021,Exp - Short-Term Contract & Agency Staff - Full Cost,Census CCS Data Collection,Parity Resources Limited,199281,"3,961.26",Information Management Services,Large,Programme Expenditure,,
UK Statistics Family,Office for National Statistics,14/04/2021,Exp - Purchase Of Goods/Services - Contractors,Programme Delivery,Parity Resources Limited,199281,"9,464.40",Information Management Services,Large,Programme Expenditure,,
UK Statistics Family,Office for National Statistics,14/04/2021,Exp - Purchase Of Goods/Services - Contractors,Covid Infection Survey,Parity Resources Limited,199281,"3,000.00",Information Management Services,Large,Programme Expenditure,,
UK Statistics Family,Office for National Statistics,14/04/2021,Exp - Short-Term Contract & Agency Staff - Full Cost,Business Architecture Transformation And Statistical Strategy,Parity Resources Limited,199281,"2,051.28",Information Management Services,Large,Programme Expenditure,,
UK Statistics Family,Office for National Statistics,14/04/2021,Exp - Purchase Of Goods/Services - Contractors,Security Advisory,Parity Resources Limited,199281,"13,892.54",Information Management Services,Large,Programme Expenditure,,
UK Statistics Family,Office for National Statistics,14/04/2021,Exp - Short-Term Contract & Agency Staff - Full Cost,Data Architecture,Parity Resources Limited,199281,"2,197.80",Information Management Services,Large,Programme Expenditure,,
UK Statistics Family,Office for National Statistics,14/04/2021,Exp - Purchase Of Goods/Services - Contractors,Data Architecture,Parity Resources Limited,199281,"3,592.56",Information Management Services,Large,Programme Expenditure,,
UK Statistics Family,Office for National Statistics,14/04/2021,Exp - Purchase Of Goods/Services - Contractors,IT Applications,Parity Resources Limited,199281,"15,122.88",Information Management Services,Large,Programme Expenditure,,
UK Statistics Family,Office for National Statistics,14/04/2021,Exp - Short-Term Contract & Agency Staff - Full Cost,Digital Delivery,Parity Resources Limited,199281,615.96,Information Management Services,Large,Programme Expenditure,,
UK Statistics Family,Office for National Statistics,14/04/2021,Exp - Purchase Of Goods/Services - Contractors,Digital Delivery,Parity Resources Limited,199281,"10,765.44",Information Management Services,Large,Programme Expenditure,,
UK Statistics Family,Office for National Statistics,14/04/2021,Exp - Purchase Of Goods/Services - Contractors,Digital Delivery,Parity Resources Limited,199281,"3,588.48",Information Management Services,Large,Programme Expenditure,,
UK Statistics Family,Office for National Statistics,14/04/2021,Exp - Purchase Of Goods/Services - Contractors,Digital Delivery,Parity Resources Limited,199281,"3,588.48",Information Management Services,Large,Programme Expenditure,,
UK Statistics Family,Office for National Statistics,14/04/2021,Exp - Purchase Of Goods/Services - IT Contractual Services,Digital Delivery,Parity Resources Limited,199281,"2,306.88",Information Management Services,Large,Programme Expenditure,,
UK Statistics Family,Office for National Statistics,14/04/2021,Exp - Short-Term Contract & Agency Staff - Full Cost,Public Sector And Households,Parity Resources Limited,199281,"1,001.22",Information Management Services,Large,Programme Expenditure,,
UK Statistics Family,Office for National Statistics,14/04/2021,Exp - Short-Term Contract & Agency Staff - Full Cost,Social Survey Transformation Titchfield,Parity Resources Limited,199281,807.12,Information Management Services,Large,Programme Expenditure,,
UK Statistics Family,Office for National Statistics,15/04/2021,Exp - Short-Term Contract & Agency Staff - Full Cost,Business Change Support,Concept Information Technology Ltd T/A Concept Resourcing,199287,"5,486.58",Information Management Services,Large,Programme Expenditure,,
UK Statistics Family,Office for National Statistics,15/04/2021,Exp - Short-Term Contract & Agency Staff - Full Cost,Business Change Support,Concept Information Technology Ltd T/A Concept Resourcing,199287,"8,578.36",Information Management Services,Large,Programme Expenditure,,
UK Statistics Family,Office for National Statistics,15/04/2021,Exp - Short-Term Contract & Agency Staff - Full Cost,Business Change Support,Concept Information Technology Ltd T/A Concept Resourcing,199287,"6,598.91",Information Management Services,Large,Programme Expenditure,,
UK Statistics Family,Office for National Statistics,15/04/2021,Exp - Short-Term Contract & Agency Staff - Full Cost,Business Change Support,Concept Information Technology Ltd T/A Concept Resourcing,199287,"4,029.74",Information Management Services,Large,Programme Expenditure,,
UK Statistics Family,Office for National Statistics,15/04/2021,Exp - Short-Term Contract & Agency Staff - Full Cost,International Trade And Transactions,Concept Information Technology Ltd T/A Concept Resourcing,199287,"11,941.42",Information Management Services,Large,Programme Expenditure,,
UK Statistics Family,Office for National Statistics,15/04/2021,Exp - Short-Term Contract & Agency Staff - Full Cost,International Trade And Transactions,Concept Information Technology Ltd T/A Concept Resourcing,199287,"4,029.74",Information Management Services,Large,Programme Expenditure,,
UK Statistics Family,Office for National Statistics,15/04/2021,Exp - Short-Term Contract & Agency Staff - Full Cost,Census CCS Data Collection,Malikshaw Interim & Executive,199292,"19,767.03",Information Management Services,SME,Programme Expenditure,,
UK Statistics Family,Office for National Statistics,15/04/2021,Exp - Short-Term Contract & Agency Staff - Full Cost,Census CCS Data Collection,Malikshaw Interim & Executive,199292,"10,727.64",Information Management Services,SME,Programme Expenditure,,
UK Statistics Family,Office for National Statistics,15/04/2021,Exp - Short-Term Contract & Agency Staff - Full Cost,Finance,Malikshaw Interim & Executive,199292,"3,766.19",Information Management Services,SME,Programme Expenditure,,
UK Statistics Family,Office for National Statistics,15/04/2021,Exp - Short-Term Contract & Agency Staff - Full Cost,Data Architecture,Malikshaw Interim & Executive,199292,"5,629.14",Information Management Services,SME,Programme Expenditure,,
UK Statistics Family,Office for National Statistics,15/04/2021,Exp - Short-Term Contract & Agency Staff - Full Cost,Survey Management,Malikshaw Interim & Executive,199292,"5,282.13",Information Management Services,SME,Programme Expenditure,,
UK Statistics Family,Office for National Statistics,15/04/2021,EXP - PURCHASE OF GOODS/SERVICES -  NON IT CONTRACTUAL PAYMENTS,Data Collection Service,K International,199293,"25,584.77",Translation Services,Large,Programme Expenditure,,
UK Statistics Family,Office for National Statistics,15/04/2021,Exp - Short-Term Contract & Agency Staff - Full Cost,Stakeholder Engagement And Comms,Parity Resources Limited,199295,"5,215.24",Information Management Services,Large,Programme Expenditure,,
UK Statistics Family,Office for National Statistics,15/04/2021,Exp - Purchase Of Goods/Services - Contractors,Business Architecture,Parity Resources Limited,199295,"8,997.40",Information Management Services,Large,Programme Expenditure,,
UK Statistics Family,Office for National Statistics,15/04/2021,Exp - Purchase Of Goods/Services - Contractors,Testing,Parity Resources Limited,199295,"14,569.20",Information Management Services,Large,Programme Expenditure,,
UK Statistics Family,Office for National Statistics,15/04/2021,Exp - Short-Term Contract & Agency Staff - Full Cost,Census CCS Data Collection,Parity Resources Limited,199295,594,Information Management Services,Large,Programme Expenditure,,
UK Statistics Family,Office for National Statistics,15/04/2021,Exp - Purchase Of Goods/Services - Contractors,Programme Delivery,Parity Resources Limited,199295,"16,843.20",Information Management Services,Large,Programme Expenditure,,
UK Statistics Family,Office for National Statistics,15/04/2021,Exp - Purchase Of Goods/Services - Contractors,Programme Delivery,Parity Resources Limited,199295,"3,310.50",Information Management Services,Large,Programme Expenditure,,
UK Statistics Family,Office for National Statistics,15/04/2021,Exp - Purchase Of Goods/Services - Contractors,Programme Support,Parity Resources Limited,199295,"2,993.80",Information Management Services,Large,Programme Expenditure,,
UK Statistics Family,Office for National Statistics,15/04/2021,Exp - Purchase Of Goods/Services - Contractors,International Trade And Transactions,Parity Resources Limited,199295,"12,816.00",Information Management Services,Large,Programme Expenditure,,
UK Statistics Family,Office for National Statistics,15/04/2021,Exp - Purchase Of Goods/Services - Contractors,Portfolio Delivery,Parity Resources Limited,199295,"10,059.00",Information Management Services,Large,Programme Expenditure,,
UK Statistics Family,Office for National Statistics,15/04/2021,Exp - Purchase Of Goods/Services - Contractors,Researcher Support And Data Access ,Parity Resources Limited,199295,"3,008.22",Information Management Services,Large,Programme Expenditure,,
UK Statistics Family,Office for National Statistics,15/04/2021,Exp - Short-Term Contract & Agency Staff - Full Cost,Recruitment ,Parity Resources Limited,199295,732.6,Information Management Services,Large,Programme Expenditure,,
UK Statistics Family,Office for National Statistics,15/04/2021,Exp - Purchase Of Goods/Services - Contractors,Security Advisory,Parity Resources Limited,199295,"7,433.28",Information Management Services,Large,Programme Expenditure,,
UK Statistics Family,Office for National Statistics,15/04/2021,Exp - Purchase Of Goods/Services - Contractors,INTEGRATED DATA STRATEGY AND DELIVERY,Parity Resources Limited,199295,"5,410.50",Information Management Services,Large,Programme Expenditure,,
UK Statistics Family,Office for National Statistics,15/04/2021,Exp - Purchase Of Goods/Services - Contractors,IT Applications,Parity Resources Limited,199295,"9,035.28",Information Management Services,Large,Programme Expenditure,,
UK Statistics Family,Office for National Statistics,15/04/2021,Exp - Purchase Of Goods/Services - Contractors,Digital Delivery,Parity Resources Limited,199295,"3,588.48",Information Management Services,Large,Programme Expenditure,,
UK Statistics Family,Office for National Statistics,15/04/2021,Exp - Purchase Of Goods/Services - Contractors,Digital Delivery,Parity Resources Limited,199295,"10,406.59",Information Management Services,Large,Programme Expenditure,,
UK Statistics Family,Office for National Statistics,15/04/2021,Exp - Purchase Of Goods/Services - Contractors,Digital Delivery,Parity Resources Limited,199295,"3,588.48",Information Management Services,Large,Programme Expenditure,,
UK Statistics Family,Office for National Statistics,15/04/2021,Exp - Purchase Of Goods/Services - IT Contractual Services,Digital Delivery,Parity Resources Limited,199295,"5,767.20",Information Management Services,Large,Programme Expenditure,,
UK Statistics Family,Office for National Statistics,15/04/2021,Exp - Purchase Of Goods/Services - Contractors,Business Statistics Transformation,Parity Resources Limited,199295,"8,971.20",Information Management Services,Large,Programme Expenditure,,
UK Statistics Family,Office for National Statistics,15/04/2021,Exp - Short-Term Contract & Agency Staff - Full Cost,Social Survey Transformation Titchfield,Parity Resources Limited,199295,"1,593.00",Information Management Services,Large,Programme Expenditure,,
UK Statistics Family,Office for National Statistics,16/04/2021,Surveys,Crime Income And Wealth,Natcen Social Research,199300,"150,393.00",Statistical Services,Large,Programme Expenditure,,
UK Statistics Family,Office for National Statistics,16/04/2021,Surveys,Social Surveys Division,Natcen Social Research,199300,"625,240.26",Statistical Services,Large,Programme Expenditure,,
UK Statistics Family,Office for National Statistics,16/04/2021,Exp - Short-Term Contract & Agency Staff - Full Cost,Business Change Support,Concept Information Technology Ltd T/A Concept Resourcing,199301,"2,014.87",Information Management Services,Large,Programme Expenditure,,
UK Statistics Family,Office for National Statistics,16/04/2021,Exp - Short-Term Contract & Agency Staff - Full Cost,Business Change Support,Concept Information Technology Ltd T/A Concept Resourcing,199301,"11,867.31",Information Management Services,Large,Programme Expenditure,,
UK Statistics Family,Office for National Statistics,16/04/2021,Exp - Short-Term Contract & Agency Staff - Full Cost,Business Change Support,Concept Information Technology Ltd T/A Concept Resourcing,199301,"3,141.74",Information Management Services,Large,Programme Expenditure,,
UK Statistics Family,Office for National Statistics,16/04/2021,Exp - Short-Term Contract & Agency Staff - Full Cost,Business Architecture Transformation And Statistical Strategy,Concept Information Technology Ltd T/A Concept Resourcing,199301,"3,022.31",Information Management Services,Large,Programme Expenditure,,
UK Statistics Family,Office for National Statistics,16/04/2021,Exp - Short-Term Contract & Agency Staff - Full Cost,Business Statistics Transformation,Concept Information Technology Ltd T/A Concept Resourcing,199301,"2,598.82",Information Management Services,Large,Programme Expenditure,,
UK Statistics Family,Office for National Statistics,16/04/2021,Exp - Short-Term Contract & Agency Staff - Full Cost,Prices Division,Concept Information Technology Ltd T/A Concept Resourcing,199301,"4,029.74",Information Management Services,Large,Programme Expenditure,,
UK Statistics Family,Office for National Statistics,16/04/2021,Exp - Purchase Of Goods/Services - IT Contractual Services,Strategy And Architecture,Medley Business Solutions Ltd,199302,"29,462.40",Information Management Services,Large,Programme Expenditure,,
UK Statistics Family,Office for National Statistics,16/04/2021,Exp - Purchase Of Goods/Services - Contractors,Business Architecture,La International,199303,"6,680.01",Information Management Services,SME,Programme Expenditure,,
UK Statistics Family,Office for National Statistics,16/04/2021,Exp - Purchase Of Goods/Services - Contractors,Business Architecture,La International,199303,"2,936.85",Information Management Services,SME,Programme Expenditure,,
UK Statistics Family,Office for National Statistics,16/04/2021,Exp - Purchase Of Goods/Services - Contractors,Testing,La International,199303,"22,234.66",Information Management Services,SME,Programme Expenditure,,
UK Statistics Family,Office for National Statistics,16/04/2021,Exp - Purchase Of Goods/Services - Contractors,Testing,La International,199303,"2,269.40",Information Management Services,SME,Programme Expenditure,,
UK Statistics Family,Office for National Statistics,16/04/2021,Exp - Purchase Of Goods/Services - Contractors,HALE,La International,199303,"2,896.50",Information Management Services,SME,Programme Expenditure,,
UK Statistics Family,Office for National Statistics,16/04/2021,Exp - Purchase Of Goods And Services Consultants,Security Operations,La International,199303,"3,203.88",Information Management Services,SME,Programme Expenditure,,
UK Statistics Family,Office for National Statistics,16/04/2021,Exp - Purchase Of Goods/Services - Contractors,Data Architecture,La International,199303,"7,048.50",Information Management Services,SME,Programme Expenditure,,
UK Statistics Family,Office for National Statistics,16/04/2021,Exp - Purchase Of Goods/Services - Contractors,Data Architecture,La International,199303,"4,004.82",Information Management Services,SME,Programme Expenditure,,
UK Statistics Family,Office for National Statistics,16/04/2021,Exp - Purchase Of Goods/Services - Contractors,Tech Delivery Legacy Sp,La International,199303,"3,524.22",Information Management Services,SME,Programme Expenditure,,
UK Statistics Family,Office for National Statistics,16/04/2021,Exp - Purchase Of Goods/Services - Contractors,IT Applications,La International,199303,"2,883.48",Information Management Services,SME,Programme Expenditure,,
UK Statistics Family,Office for National Statistics,16/04/2021,Exp - Purchase Of Goods/Services - Contractors,Digital Delivery,La International,199303,"7,182.00",Information Management Services,SME,Programme Expenditure,,
UK Statistics Family,Office for National Statistics,16/04/2021,Exp - Purchase Of Goods/Services - Contractors,Digital Delivery,La International,199303,"6,458.94",Information Management Services,SME,Programme Expenditure,,
UK Statistics Family,Office for National Statistics,16/04/2021,Exp - Purchase Of Goods/Services - Contractors,Strategy And Architecture,Malikshaw Interim & Executive,199306,"38,848.04",Information Management Services,SME,Programme Expenditure,,
UK Statistics Family,Office for National Statistics,16/04/2021,Exp - Short-Term Contract & Agency Staff - Full Cost,Divisional Management,Malikshaw Interim & Executive,199306,"2,790.18",Information Management Services,SME,Programme Expenditure,,
UK Statistics Family,Office for National Statistics,16/04/2021,Fixtures & Fittings At Cost - Additions,Researcher Support And Data Access ,Gresham Office Furniture Limited,199307,"63,148.01",Office Furniture,SME,Programme Expenditure,,
UK Statistics Family,Office for National Statistics,16/04/2021,Fixtures & Fittings At Cost - Additions,Property Newport,Gresham Office Furniture Limited,199307,"207,696.00",Office Furniture,SME,Programme Expenditure,,
UK Statistics Family,Office for National Statistics,16/04/2021,FM Contract Payments,Property Newport,Gresham Office Furniture Limited,199307,"23,040.00",Office Furniture,SME,Programme Expenditure,,
UK Statistics Family,Office for National Statistics,16/04/2021,Fixtures & Fittings At Cost - Additions,Property Titchfield,Gresham Office Furniture Limited,199307,"109,161.60",Office Furniture,SME,Programme Expenditure,,
UK Statistics Family,Office for National Statistics,16/04/2021,FM Contract Payments,Property Titchfield,Gresham Office Furniture Limited,199307,"13,248.00",Office Furniture,SME,Programme Expenditure,,
UK Statistics Family,Office for National Statistics,16/04/2021,Exp - Purchase Of Goods/Services - Accommodation & Bldng Management - Miscellaneous Minor Works,Property London,Gresham Office Furniture Limited,199307,"5,985.60",Office Furniture,SME,Programme Expenditure,,
UK Statistics Family,Office for National Statistics,16/04/2021,Exp - Short-Term Contract & Agency Staff - Full Cost,Stakeholder Engagement And Comms,Parity Resources Limited,199313,"1,408.50",Information Management Services,Large,Programme Expenditure,,
UK Statistics Family,Office for National Statistics,16/04/2021,Exp - Purchase Of Goods And Services Consultants,Digital Publishing,Parity Resources Limited,199313,"14,353.92",Information Management Services,Large,Programme Expenditure,,
UK Statistics Family,Office for National Statistics,16/04/2021,Exp - Purchase Of Goods/Services - Contractors,Digital Delivery,Parity Resources Limited,199313,"7,176.96",Information Management Services,Large,Programme Expenditure,,
UK Statistics Family,Office for National Statistics,16/04/2021,Exp - Purchase Of Goods/Services - IT Contractual Services,Digital Delivery,Parity Resources Limited,199313,"2,883.60",Information Management Services,Large,Programme Expenditure,,
UK Statistics Family,Office for National Statistics,16/04/2021,Exp - Purchase Of Goods/Services - Contractors,Business Architecture,LA FOSSE ASSOCIATES LIMITED,199314,"29,004.94",Information Management Services,Large,Programme Expenditure,,
UK Statistics Family,Office for National Statistics,16/04/2021,Exp - Purchase Of Goods/Services - Contractors,Business Architecture,LA FOSSE ASSOCIATES LIMITED,199314,"6,375.00",Information Management Services,Large,Programme Expenditure,,
UK Statistics Family,Office for National Statistics,16/04/2021,Exp - Purchase Of Goods/Services - Contractors,Testing,LA FOSSE ASSOCIATES LIMITED,199314,"3,000.00",Information Management Services,Large,Programme Expenditure,,
UK Statistics Family,Office for National Statistics,16/04/2021,Exp - Purchase Of Goods/Services - Contractors,Operations,LA FOSSE ASSOCIATES LIMITED,199314,"3,300.00",Information Management Services,Large,Programme Expenditure,,
UK Statistics Family,Office for National Statistics,16/04/2021,Exp - Purchase Of Goods/Services - Contractors,Consultancy Management,LA FOSSE ASSOCIATES LIMITED,199314,"6,450.00",Information Management Services,Large,Programme Expenditure,,
UK Statistics Family,Office for National Statistics,16/04/2021,Exp - Purchase Of Goods/Services - Contractors,Programme Support,LA FOSSE ASSOCIATES LIMITED,199314,"3,000.00",Information Management Services,Large,Programme Expenditure,,
UK Statistics Family,Office for National Statistics,16/04/2021,Exp - Purchase Of Goods/Services - Contractors,Programme Support,LA FOSSE ASSOCIATES LIMITED,199314,"2,750.00",Information Management Services,Large,Programme Expenditure,,
UK Statistics Family,Office for National Statistics,16/04/2021,Exp - Purchase Of Goods/Services - Contractors,Digital Publishing,LA FOSSE ASSOCIATES LIMITED,199314,"3,480.00",Information Management Services,Large,Programme Expenditure,,
UK Statistics Family,Office for National Statistics,16/04/2021,Exp - Purchase Of Goods/Services - Contractors,Researcher Support And Data Access ,LA FOSSE ASSOCIATES LIMITED,199314,"9,450.00",Information Management Services,Large,Programme Expenditure,,
UK Statistics Family,Office for National Statistics,16/04/2021,Exp - Purchase Of Goods/Services - Contractors,INTEGRATED DATA STRATEGY AND DELIVERY,LA FOSSE ASSOCIATES LIMITED,199314,"3,450.00",Information Management Services,Large,Programme Expenditure,,
UK Statistics Family,Office for National Statistics,16/04/2021,Exp - Purchase Of Goods/Services - Contractors,Data Architecture,LA FOSSE ASSOCIATES LIMITED,199314,"3,240.00",Information Management Services,Large,Programme Expenditure,,
UK Statistics Family,Office for National Statistics,16/04/2021,Exp - Purchase Of Goods/Services - Contractors,Data Architecture,LA FOSSE ASSOCIATES LIMITED,199314,"3,450.00",Information Management Services,Large,Programme Expenditure,,
UK Statistics Family,Office for National Statistics,16/04/2021,Exp - Purchase Of Goods/Services - Contractors,Tech Delivery Legacy Sp,LA FOSSE ASSOCIATES LIMITED,199314,"2,880.00",Information Management Services,Large,Programme Expenditure,,
UK Statistics Family,Office for National Statistics,16/04/2021,Exp - Purchase Of Goods/Services - Contractors,Tech Delivery Legacy Sp,LA FOSSE ASSOCIATES LIMITED,199314,"10,800.00",Information Management Services,Large,Programme Expenditure,,
UK Statistics Family,Office for National Statistics,16/04/2021,Exp - Purchase Of Goods/Services - Contractors,Tech Delivery Legacy Sp,LA FOSSE ASSOCIATES LIMITED,199314,"3,600.00",Information Management Services,Large,Programme Expenditure,,
UK Statistics Family,Office for National Statistics,16/04/2021,Exp - Purchase Of Goods/Services - Contractors,IT Applications,LA FOSSE ASSOCIATES LIMITED,199314,"3,600.00",Information Management Services,Large,Programme Expenditure,,
UK Statistics Family,Office for National Statistics,16/04/2021,Marketing & Media,Stakeholder Engagement And Comms,M&C Saatchi UK Ltd,199315,"126,879.55",Marketing Services,Large,Programme Expenditure,,
UK Statistics Family,Office for National Statistics,19/04/2021,"ICT Outsourcing, Maintenance And Support",Senior Management Team Design,Totalmobile Ltd,199424,"363,331.20",Information Management Services,SME,Programme Expenditure,,
UK Statistics Family,Office for National Statistics,19/04/2021,Exp - Short-Term Contract & Agency Staff - Full Cost,Census CCS Data Collection,Malikshaw Interim & Executive,199425,"3,274.94",Information Management Services,SME,Programme Expenditure,,
UK Statistics Family,Office for National Statistics,19/04/2021,Exp - Purchase Of Goods/Services - Contractors,Digital Publishing,Malikshaw Interim & Executive,199425,"26,815.46",Information Management Services,SME,Programme Expenditure,,
UK Statistics Family,Office for National Statistics,19/04/2021,EXP - PURCHASE OF GOODS/SERVICES -  NON IT CONTRACTUAL PAYMENTS,Covid Infection Survey,HH Associates Ltd,199427,"29,031.34",Print and Post Services,SME,Programme Expenditure,,
UK Statistics Family,Office for National Statistics,19/04/2021,"ICT Outsourcing, Maintenance And Support",Digital Delivery,Mitie Security,199429,"120,186.60",Software Licenses,Large,Programme Expenditure,,
UK Statistics Family,Office for National Statistics,19/04/2021,Exp - Purchase Of Goods/Services - Contractors,Data Architecture,Parity Resources Limited,199432,"13,650.00",Information Management Services,Large,Programme Expenditure,,
UK Statistics Family,Office for National Statistics,19/04/2021,Exp - Purchase Of Goods/Services - Contractors,Data As A Service,Parity Resources Limited,199432,"13,995.07",Information Management Services,Large,Programme Expenditure,,
UK Statistics Family,Office for National Statistics,19/04/2021,Exp - Purchase Of Goods/Services - Contractors,Business Architecture,LA FOSSE ASSOCIATES LIMITED,199434,"24,868.95",Information Management Services,Large,Programme Expenditure,,
UK Statistics Family,Office for National Statistics,19/04/2021,Exp - Purchase Of Goods/Services - Contractors,Business Architecture,LA FOSSE ASSOCIATES LIMITED,199434,"5,100.00",Information Management Services,Large,Programme Expenditure,,
UK Statistics Family,Office for National Statistics,19/04/2021,Exp - Purchase Of Goods/Services - Contractors,Testing,LA FOSSE ASSOCIATES LIMITED,199434,"2,400.00",Information Management Services,Large,Programme Expenditure,,
UK Statistics Family,Office for National Statistics,19/04/2021,Exp - Purchase Of Goods/Services - Contractors,Consultancy Management,LA FOSSE ASSOCIATES LIMITED,199434,630,Information Management Services,Large,Programme Expenditure,,
UK Statistics Family,Office for National Statistics,19/04/2021,Exp - Purchase Of Goods/Services - Contractors,Consultancy Management,LA FOSSE ASSOCIATES LIMITED,199434,"1,890.00",Information Management Services,Large,Programme Expenditure,,
UK Statistics Family,Office for National Statistics,19/04/2021,Exp - Purchase Of Goods/Services - Contractors,Programme Support,LA FOSSE ASSOCIATES LIMITED,199434,"2,200.00",Information Management Services,Large,Programme Expenditure,,
UK Statistics Family,Office for National Statistics,19/04/2021,Exp - Purchase Of Goods/Services - Contractors,Digital Publishing,LA FOSSE ASSOCIATES LIMITED,199434,"3,480.00",Information Management Services,Large,Programme Expenditure,,
UK Statistics Family,Office for National Statistics,19/04/2021,Exp - Purchase Of Goods/Services - Contractors,Data Architecture,LA FOSSE ASSOCIATES LIMITED,199434,"2,430.00",Information Management Services,Large,Programme Expenditure,,
UK Statistics Family,Office for National Statistics,19/04/2021,Exp - Purchase Of Goods/Services - Contractors,Data Architecture,LA FOSSE ASSOCIATES LIMITED,199434,810,Information Management Services,Large,Programme Expenditure,,
UK Statistics Family,Office for National Statistics,20/04/2021,Exp - Purchase Of Goods/Services - IT Contractual Services,Strategy And Architecture,Empiric Solutions Limited,199534,"53,820.00",Information Management Services,Large,Programme Expenditure,,
UK Statistics Family,Office for National Statistics,20/04/2021,Exp - Purchase Of Goods/Services - Contractors,IT Operations,Empiric Solutions Limited,199534,"4,680.00",Information Management Services,Large,Programme Expenditure,,
UK Statistics Family,Office for National Statistics,20/04/2021,Exp - Purchase Of Goods/Services - Contractors,Strategy And Architecture,Certes Computing Ltd,199540,"15,372.00",Information Management Services,SME,Programme Expenditure,,
UK Statistics Family,Office for National Statistics,20/04/2021,Exp - Purchase Of Goods/Services - Contractors,Strategy And Architecture,Certes Computing Ltd,199540,"16,200.00",Information Management Services,SME,Programme Expenditure,,
UK Statistics Family,Office for National Statistics,20/04/2021,Exp - Purchase Of Goods/Services - Contractors,Tech Delivery Legacy Sp,Certes Computing Ltd,199540,"13,450.56",Information Management Services,SME,Programme Expenditure,,
UK Statistics Family,Office for National Statistics,20/04/2021,Exp - Purchase Of Goods/Services - Contractors,Tech Delivery Data As A Platform,Certes Computing Ltd,199540,"8,006.28",Information Management Services,SME,Programme Expenditure,,
UK Statistics Family,Office for National Statistics,20/04/2021,Exp - Purchase Of Goods/Services - Contractors,IT Applications,Certes Computing Ltd,199540,"14,398.56",Information Management Services,SME,Programme Expenditure,,
UK Statistics Family,Office for National Statistics,20/04/2021,Exp - Purchase Of Goods/Services - Contractors,Digital Delivery,Certes Computing Ltd,199540,"7,200.00",Information Management Services,SME,Programme Expenditure,,
UK Statistics Family,Office for National Statistics,20/04/2021,Exp - Purchase Of Goods/Services - Contractors,Business Architecture,La International,199541,"5,734.89",Information Management Services,SME,Programme Expenditure,,
UK Statistics Family,Office for National Statistics,20/04/2021,Exp - Purchase Of Goods/Services - Contractors,Business Architecture,La International,199541,"2,349.48",Information Management Services,SME,Programme Expenditure,,
UK Statistics Family,Office for National Statistics,20/04/2021,Exp - Purchase Of Goods/Services - Contractors,Testing,La International,199541,"16,531.79",Information Management Services,SME,Programme Expenditure,,
UK Statistics Family,Office for National Statistics,20/04/2021,Exp - Purchase Of Goods/Services - Contractors,Testing,La International,199541,"1,815.52",Information Management Services,SME,Programme Expenditure,,
UK Statistics Family,Office for National Statistics,20/04/2021,EXP - PURCHASE OF GOODS/SERVICES -  NON IT CONTRACTUAL PAYMENTS,Productivity Research And Professional Development,La International,199541,"12,815.52",Information Management Services,SME,Programme Expenditure,,
UK Statistics Family,Office for National Statistics,20/04/2021,Exp - Purchase Of Goods/Services - Contractors,Security Advisory,La International,199541,"10,412.55",Information Management Services,SME,Programme Expenditure,,
UK Statistics Family,Office for National Statistics,20/04/2021,Exp - Purchase Of Goods/Services - Contractors,Data Architecture,La International,199541,"2,819.38",Information Management Services,SME,Programme Expenditure,,
UK Statistics Family,Office for National Statistics,20/04/2021,Exp - Purchase Of Goods/Services - Contractors,Data Architecture,La International,199541,"1,762.12",Information Management Services,SME,Programme Expenditure,,
UK Statistics Family,Office for National Statistics,20/04/2021,Exp - Purchase Of Goods/Services - Contractors,Data Architecture,La International,199541,"4,421.31",Information Management Services,SME,Programme Expenditure,,
UK Statistics Family,Office for National Statistics,20/04/2021,Exp - Purchase Of Goods/Services - Contractors,Data Architecture,La International,199541,"1,473.76",Information Management Services,SME,Programme Expenditure,,
UK Statistics Family,Office for National Statistics,20/04/2021,Exp - Purchase Of Goods/Services - Contractors,Data Architecture,La International,199541,704.84,Information Management Services,SME,Programme Expenditure,,
UK Statistics Family,Office for National Statistics,20/04/2021,Exp - Purchase Of Goods/Services - Contractors,IT Applications,La International,199541,"14,353.34",Information Management Services,SME,Programme Expenditure,,
UK Statistics Family,Office for National Statistics,20/04/2021,Exp - Short-Term Contract & Agency Staff - Full Cost,Social Survey Transformation Titchfield,La International,199541,"1,593.82",Information Management Services,SME,Programme Expenditure,,
UK Statistics Family,Office for National Statistics,20/04/2021,Exp - Short-Term Contract & Agency Staff - Full Cost,Census CCS Data Collection,Malikshaw Interim & Executive,199547,"2,456.21",Information Management Services,SME,Programme Expenditure,,
UK Statistics Family,Office for National Statistics,20/04/2021,Exp - Short-Term Contract & Agency Staff - Full Cost,Recruitment ,Malikshaw Interim & Executive,199547,"3,274.94",Information Management Services,SME,Programme Expenditure,,
UK Statistics Family,Office for National Statistics,20/04/2021,Exp - Purchase Of Goods/Services - Contractors,Strategy And Architecture,Malikshaw Interim & Executive,199547,"3,437.88",Information Management Services,SME,Programme Expenditure,,
UK Statistics Family,Office for National Statistics,20/04/2021,Exp - Purchase Of Goods/Services - Contractors,Tech Delivery Legacy Sp,Malikshaw Interim & Executive,199547,"2,062.73",Information Management Services,SME,Programme Expenditure,,
UK Statistics Family,Office for National Statistics,20/04/2021,Exp - Purchase Of Goods/Services - Contractors,Digital Delivery,Malikshaw Interim & Executive,199547,"13,751.52",Information Management Services,SME,Programme Expenditure,,
UK Statistics Family,Office for National Statistics,20/04/2021,Exp - Purchase Of Goods/Services - Contractors,Data As A Service,Malikshaw Interim & Executive,199547,"8,938.49",Information Management Services,SME,Programme Expenditure,,
UK Statistics Family,Office for National Statistics,20/04/2021,Hosting,IT Operations,CTS (Cloud Technology Solutions Ltd),199548,"82,999.42",DST Infrastructure Preparation,Large,Programme Expenditure,,
UK Statistics Family,Office for National Statistics,20/04/2021,Surveys,Crime Statistics,Kantar UK Ltd,199552,"322,332.00",Statistical Services,Large,Programme Expenditure,,
UK Statistics Family,Office for National Statistics,20/04/2021,Surveys,Prices Division,Kantar UK Ltd,199552,"122,520.00",Statistical Services,Large,Programme Expenditure,,
UK Statistics Family,Office for National Statistics,20/04/2021,EXP - PURCHASE OF GOODS/SERVICES -  NON IT CONTRACTUAL PAYMENTS,Data Collection Service,Good Things Foundation,199553,"454,304.40",Census Assisted Digital Services,SME,Programme Expenditure,,
UK Statistics Family,Office for National Statistics,20/04/2021,Exp - Purchase Of Goods And Services Consultants,Talent And Careers,TMP Worldwide,199554,"28,938.84",Recruitment Services,Large,Programme Expenditure,,
UK Statistics Family,Office for National Statistics,20/04/2021,Exp - Purchase Of Goods And Services Consultants,Consultancy Management,Bloom Procurement Services Ltd,199556,"63,461.78",Consultancy,Large,Programme Expenditure,,
UK Statistics Family,Office for National Statistics,20/04/2021,Exp - Purchase Of Goods/Services - IT Contractual Services,Office Of Chief Data And Information,Akamai Technologies Limited,199561,"36,200.00",Information Management Services,SME,Programme Expenditure,,
UK Statistics Family,Office for National Statistics,20/04/2021,Exp - Purchase Of Goods/Services - IT Contractual Services,Digital Delivery,Equal Experts UK Ltd,199563,"120,974.40",Information Management Services,Large,Programme Expenditure,,
UK Statistics Family,Office for National Statistics,20/04/2021,Exp - Purchase Of Goods/Services - IT Contractual Services,Tech Delivery Legacy Sp,Armakuni Ltd,199565,"42,000.00",Information Management Services,SME,Programme Expenditure,,
UK Statistics Family,Office for National Statistics,20/04/2021,Exp - Permanent UK Staff - PRP Voucher Payments,ONS Corporate Funds,Edenred (UK Group) Limited,199566,"53,200.00",Performance Reward Vouchers,Large,Programme Expenditure,,
UK Statistics Family,Office for National Statistics,21/04/2021,Exp - Purchase Of Goods/Services - IT Contractual Services,CLOUD ARCHITECTURE,E Synergy Solutions,199571,"16,560.00",Information Management Services,SME,Programme Expenditure,,
UK Statistics Family,Office for National Statistics,21/04/2021,Exp - Purchase Of Goods/Services - IT Contractual Services,Strategy And Architecture,E Synergy Solutions,199571,"18,000.00",Information Management Services,SME,Programme Expenditure,,
UK Statistics Family,Office for National Statistics,21/04/2021,Exp - Purchase Of Goods/Services - IT Contractual Services,Tech Delivery Legacy Sp,E Synergy Solutions,199571,"81,171.00",Information Management Services,SME,Programme Expenditure,,
UK Statistics Family,Office for National Statistics,21/04/2021,Exp - Purchase Of Goods/Services - IT Contractual Services,Tech Delivery Next Gen IT And Infrastructure,E Synergy Solutions,199571,"33,120.00",Information Management Services,SME,Programme Expenditure,,
UK Statistics Family,Office for National Statistics,21/04/2021,Exp - Purchase Of Goods/Services - IT Contractual Services,IT Operations,E Synergy Solutions,199571,"124,917.00",Information Management Services,SME,Programme Expenditure,,
UK Statistics Family,Office for National Statistics,21/04/2021,Surveys,Crime Income And Wealth,Natcen Social Research,199572,"47,682.00",Statistical Services,Large,Programme Expenditure,,
UK Statistics Family,Office for National Statistics,21/04/2021,FM Contract Payments,Vinci Payments,Vinci Construction UK Limited,199573,"329,089.73",Facilities Mangement Services,Large,Programme Expenditure,,
UK Statistics Family,Office for National Statistics,21/04/2021,Exp - Purchase Of Goods/Services - Other ICT Costs Software,Finance,Scc,199577,"154,286.88",Software Licenses,Large,Programme Expenditure,,
UK Statistics Family,Office for National Statistics,21/04/2021,"ICT Outsourcing, Maintenance And Support",IT Operations,Scc,199577,"69,790.80",Software Licenses,Large,Programme Expenditure,,
UK Statistics Family,Office for National Statistics,21/04/2021,"ICT Outsourcing, Maintenance And Support",Business Statistics Transformation,Scc,199577,"50,995.20",Software Licenses,Large,Programme Expenditure,,
UK Statistics Family,Office for National Statistics,21/04/2021,Travel And Subsistence,Corporate Centre,Corporate Travel Management ,199583,"115,592.73",Travel and Accommodation,SME,Programme Expenditure,,
UK Statistics Family,Office for National Statistics,21/04/2021,Travel And Subsistence,Corporate Centre,Calder World of Travel,199587,"45,897.00",Multiple Venue Hire ,SME,Programme Expenditure,,
UK Statistics Family,Office for National Statistics,21/04/2021,Exp - Short-Term Contract & Agency Staff - Full Cost,Stakeholder Engagement And Comms,La International,199589,"6,205.32",Information Management Services,SME,Programme Expenditure,,
UK Statistics Family,Office for National Statistics,21/04/2021,Exp - Short-Term Contract & Agency Staff - Full Cost,Social Survey Transformation Titchfield,La International,199589,"1,543.56",Information Management Services,SME,Programme Expenditure,,
UK Statistics Family,Office for National Statistics,21/04/2021,Exp - Purchase Of Goods/Services - Contractors,Social Survey Transformation Titchfield,La International,199589,"17,770.56",Information Management Services,SME,Programme Expenditure,,
UK Statistics Family,Office for National Statistics,21/04/2021,Other Goods And Services,Senior Management,DNA DEFINITIVE LTD,199593,"43,200.00",Census Staff Support,SME,Programme Expenditure,,
UK Statistics Family,Office for National Statistics,21/04/2021,"ICT Outsourcing, Maintenance And Support",People Solutions,People-Asset Management Ltd,199600,"39,774.31",Occupational Health and Staff Support,SME,Programme Expenditure,,
UK Statistics Family,Office for National Statistics,21/04/2021,Exp - Purchase Of Goods/Services - Contractors,Digital Publishing,Malikshaw Interim & Executive,199602,"25,440.31",Information Management Services,SME,Programme Expenditure,,
UK Statistics Family,Office for National Statistics,21/04/2021,Exp - Purchase Of Goods/Services - Contractors,Social Surveys Division,Malikshaw Interim & Executive,199602,"8,471.82",Information Management Services,SME,Programme Expenditure,,
UK Statistics Family,Office for National Statistics,21/04/2021,EXP - PURCHASE OF GOODS/SERVICES -  NON IT CONTRACTUAL PAYMENTS,Covid Infection Survey,HH Associates Ltd,199605,"47,979.07",Print and Post Services,SME,Programme Expenditure,,
UK Statistics Family,Office for National Statistics,21/04/2021,Other Goods And Services,Beyond 2021 Research And Design,The Sensible Code Company,199611,"310,500.00",Statistical Services,SME,Programme Expenditure,,
UK Statistics Family,Office for National Statistics,21/04/2021,Marketing & Media,Data Collection Service,M&C Saatchi UK Ltd,199615,"171,010.73",Marketing Services,Large,Programme Expenditure,,
UK Statistics Family,Office for National Statistics,21/04/2021,FM Contract Payments,Property London,Tandem Property Asset Management LLP - DG Lease Limited Service Charge Account,199620,"55,008.00",Rental Charges,Large,Programme Expenditure,,
UK Statistics Family,Office for National Statistics,21/04/2021,Exp - Purchase Of Goods/Services - Accommodation & Bldng Management - Miscellaneous Minor Works,Property London,Tandem Property Asset Management LLP - DG Lease Limited Service Charge Account,199620,"2,970.60",Rental Charges,Large,Programme Expenditure,,
UK Statistics Family,Office for National Statistics,21/04/2021,Electricity,Property London,Tandem Property Asset Management LLP - DG Lease Limited Service Charge Account,199620,"8,788.68",Rental Charges,Large,Programme Expenditure,,
UK Statistics Family,Office for National Statistics,22/04/2021,EXP - PURCHASE OF GOODS/SERVICES -  NON IT CONTRACTUAL PAYMENTS,Data Collection Service,Royal Mail Group Ltd,199815,"3,052,834.19",Postage,Large,Programme Expenditure,,
UK Statistics Family,Office for National Statistics,22/04/2021,"ICT Outsourcing, Maintenance And Support",Researcher Support And Data Access ,Equiniti-TopLevel,199817,"51,619.20",Information Management Services,SME,Programme Expenditure,,
UK Statistics Family,Office for National Statistics,22/04/2021,Other Goods And Services,IT Operations,Malikshaw Interim & Executive,199818,"1,930.09",Information Management Services,SME,Programme Expenditure,,
UK Statistics Family,Office for National Statistics,22/04/2021,Exp - Purchase Of Goods/Services - Contractors,Digital Delivery,Malikshaw Interim & Executive,199818,"15,814.25",Information Management Services,SME,Programme Expenditure,,
UK Statistics Family,Office for National Statistics,22/04/2021,Exp - Short-Term Contract & Agency Staff - Full Cost,Survey Management,Malikshaw Interim & Executive,199818,"7,931.47",Information Management Services,SME,Programme Expenditure,,
UK Statistics Family,Office for National Statistics,22/04/2021,Exp - Purchase Of Goods/Services - Contractors,Programme Delivery,Parity Resources Limited,199821,"5,958.90",Information Management Services,Large,Programme Expenditure,,
UK Statistics Family,Office for National Statistics,22/04/2021,Exp - Purchase Of Goods/Services - Contractors,Portfolio Delivery,Parity Resources Limited,199821,"3,053.63",Information Management Services,Large,Programme Expenditure,,
UK Statistics Family,Office for National Statistics,22/04/2021,Exp - Purchase Of Goods/Services - Contractors,Commercial Services,Parity Resources Limited,199821,"28,419.48",Information Management Services,Large,Programme Expenditure,,
UK Statistics Family,Office for National Statistics,22/04/2021,Exp - Purchase Of Goods/Services - Contractors,Security Advisory,Parity Resources Limited,199821,"6,151.68",Information Management Services,Large,Programme Expenditure,,
UK Statistics Family,Office for National Statistics,22/04/2021,Exp - Purchase Of Goods/Services - Contractors,INTEGRATED DATA STRATEGY AND DELIVERY,Parity Resources Limited,199821,"5,410.50",Information Management Services,Large,Programme Expenditure,,
UK Statistics Family,Office for National Statistics,22/04/2021,Exp - Short-Term Contract & Agency Staff - Full Cost,Data Architecture,Parity Resources Limited,199821,"1,758.24",Information Management Services,Large,Programme Expenditure,,
UK Statistics Family,Office for National Statistics,22/04/2021,Exp - Purchase Of Goods/Services - Contractors,Data Architecture,Parity Resources Limited,199821,"4,203.04",Information Management Services,Large,Programme Expenditure,,
UK Statistics Family,Office for National Statistics,22/04/2021,Exp - Purchase Of Goods/Services - Contractors,Data Architecture,Parity Resources Limited,199821,"1,401.01",Information Management Services,Large,Programme Expenditure,,
UK Statistics Family,Office for National Statistics,22/04/2021,Exp - Short-Term Contract & Agency Staff - Full Cost,Digital Delivery,Parity Resources Limited,199821,456.66,Information Management Services,Large,Programme Expenditure,,
UK Statistics Family,Office for National Statistics,23/04/2021,Capital Major Works >25K,Property Titchfield,Vinci Construction UK Limited,199939,"73,676.51",Facilities Mangement Services,Large,Programme Expenditure,,
UK Statistics Family,Office for National Statistics,23/04/2021,Capital Major Works >25K,Property Titchfield,Vinci Construction UK Limited,199939,"28,722.00",Facilities Mangement Services,Large,Programme Expenditure,,
UK Statistics Family,Office for National Statistics,23/04/2021,"ICT Outsourcing, Maintenance And Support",IT Operations,Scc,199940,"37,258.61",Software Licenses,Large,Programme Expenditure,,
UK Statistics Family,Office for National Statistics,23/04/2021,Capitalised Consultancy  IT,Finance,Phoenix Software Ltd,199941,"1,680.00",Software Licenses,SME,Programme Expenditure,,
UK Statistics Family,Office for National Statistics,23/04/2021,"ICT Outsourcing, Maintenance And Support",IT Operations,Phoenix Software Ltd,199941,"32,881.20",Software Licenses,SME,Programme Expenditure,,
UK Statistics Family,Office for National Statistics,23/04/2021,Print and Post,Ask Business Services,APS Group,199942,317.76,Mailing Services,Large,Programme Expenditure,,
UK Statistics Family,Office for National Statistics,23/04/2021,Print and Post,Social Surveys Division,APS Group,199942,"25,794.22",Mailing Services,Large,Programme Expenditure,,
UK Statistics Family,Office for National Statistics,23/04/2021,EXP - PURCHASE OF GOODS/SERVICES -  NON IT CONTRACTUAL PAYMENTS,Data Collection Service,HH Associates Ltd,199944,"735,671.53",Print and Post Services,SME,Programme Expenditure,,
UK Statistics Family,Office for National Statistics,23/04/2021,EXP - PURCHASE OF GOODS/SERVICES -  NON IT CONTRACTUAL PAYMENTS,Covid Infection Survey,HH Associates Ltd,199944,"36,904.00",Print and Post Services,SME,Programme Expenditure,,
UK Statistics Family,Office for National Statistics,23/04/2021,End User Software And Hardware,IT Operations,Probrand Ltd,199951,"74,657.74",Software Licenses,SME,Programme Expenditure,,
UK Statistics Family,Office for National Statistics,26/04/2021,Other Goods And Services,Census & Soc Methodology Dd,University of Southampton,200040,"40,559.04",Statistical Services,SME,Programme Expenditure,,
UK Statistics Family,Office for National Statistics,26/04/2021,Capitalised Specialist Contractors IT,Tech Delivery Data As A Platform,Kainos,200041,"113,611.27",Information Management Services,Large,Programme Expenditure,,
UK Statistics Family,Office for National Statistics,26/04/2021,Hosting,Tech Delivery Data As A Platform,Kainos,200041,"4,800.00",Information Management Services,Large,Programme Expenditure,,
UK Statistics Family,Office for National Statistics,26/04/2021,Travel And Subsistence,Corporate Centre,Calder World of Travel,200045,"265,227.34",Multiple Venue Hire ,SME,Programme Expenditure,,
UK Statistics Family,Office for National Statistics,26/04/2021,Exp - Purchase Of Goods/Services - Contractors,Business Architecture,La International,200047,"5,020.73",Information Management Services,SME,Programme Expenditure,,
UK Statistics Family,Office for National Statistics,26/04/2021,Exp - Purchase Of Goods/Services - Contractors,Business Architecture,La International,200047,"5,403.80",Information Management Services,SME,Programme Expenditure,,
UK Statistics Family,Office for National Statistics,26/04/2021,Exp - Purchase Of Goods/Services - Contractors,Testing,La International,200047,"15,058.03",Information Management Services,SME,Programme Expenditure,,
UK Statistics Family,Office for National Statistics,26/04/2021,Exp - Purchase Of Goods/Services - Contractors,Testing,La International,200047,"1,815.52",Information Management Services,SME,Programme Expenditure,,
UK Statistics Family,Office for National Statistics,26/04/2021,Exp - Purchase Of Goods/Services - Contractors,HALE,La International,200047,"1,737.90",Information Management Services,SME,Programme Expenditure,,
UK Statistics Family,Office for National Statistics,26/04/2021,Exp - Purchase Of Goods/Services - Contractors,HALE,La International,200047,"2,510.30",Information Management Services,SME,Programme Expenditure,,
UK Statistics Family,Office for National Statistics,26/04/2021,Exp - Purchase Of Goods/Services - Contractors,Security Advisory,La International,200047,"3,123.77",Information Management Services,SME,Programme Expenditure,,
UK Statistics Family,Office for National Statistics,26/04/2021,Exp - Purchase Of Goods And Services Consultants,Security Operations,La International,200047,"3,203.88",Information Management Services,SME,Programme Expenditure,,
UK Statistics Family,Office for National Statistics,26/04/2021,Exp - Purchase Of Goods And Services Consultants,Security Operations,La International,200047,"1,922.32",Information Management Services,SME,Programme Expenditure,,
UK Statistics Family,Office for National Statistics,26/04/2021,Exp - Purchase Of Goods/Services - Contractors,Data Architecture,La International,200047,"2,466.96",Information Management Services,SME,Programme Expenditure,,
UK Statistics Family,Office for National Statistics,26/04/2021,Exp - Purchase Of Goods/Services - Contractors,Data Architecture,La International,200047,"9,329.58",Information Management Services,SME,Programme Expenditure,,
UK Statistics Family,Office for National Statistics,26/04/2021,Exp - Purchase Of Goods/Services - Contractors,Data Architecture,La International,200047,"2,152.98",Information Management Services,SME,Programme Expenditure,,
UK Statistics Family,Office for National Statistics,26/04/2021,Exp - Purchase Of Goods/Services - Contractors,Data Architecture,La International,200047,"9,867.88",Information Management Services,SME,Programme Expenditure,,
UK Statistics Family,Office for National Statistics,26/04/2021,Exp - Purchase Of Goods/Services - Contractors,Data Architecture,La International,200047,"2,819.38",Information Management Services,SME,Programme Expenditure,,
UK Statistics Family,Office for National Statistics,26/04/2021,Exp - Purchase Of Goods/Services - Contractors,Tech Delivery Legacy Sp,La International,200047,"16,211.42",Information Management Services,SME,Programme Expenditure,,
UK Statistics Family,Office for National Statistics,26/04/2021,Exp - Purchase Of Goods/Services - Contractors,Tech Delivery Legacy Sp,La International,200047,"2,114.53",Information Management Services,SME,Programme Expenditure,,
UK Statistics Family,Office for National Statistics,26/04/2021,Exp - Purchase Of Goods/Services - Contractors,Tech Delivery Data As A Platform,La International,200047,"8,330.08",Information Management Services,SME,Programme Expenditure,,
UK Statistics Family,Office for National Statistics,26/04/2021,Exp - Purchase Of Goods/Services - Contractors,Tech Delivery Data As A Platform,La International,200047,"9,329.58",Information Management Services,SME,Programme Expenditure,,
UK Statistics Family,Office for National Statistics,26/04/2021,Exp - Purchase Of Goods/Services - Contractors,IT Applications,La International,200047,"4,818.62",Information Management Services,SME,Programme Expenditure,,
UK Statistics Family,Office for National Statistics,26/04/2021,Exp - Purchase Of Goods/Services - Contractors,Digital Delivery,La International,200047,897.08,Information Management Services,SME,Programme Expenditure,,
UK Statistics Family,Office for National Statistics,26/04/2021,Exp - Purchase Of Goods/Services - Contractors,Digital Delivery,La International,200047,"7,176.68",Information Management Services,SME,Programme Expenditure,,
UK Statistics Family,Office for National Statistics,26/04/2021,Exp - Purchase Of Goods/Services - Contractors,Digital Delivery,La International,200047,"2,563.10",Information Management Services,SME,Programme Expenditure,,
UK Statistics Family,Office for National Statistics,26/04/2021,Exp - Purchase Of Goods/Services - Contractors,Digital Delivery,La International,200047,"9,329.58",Information Management Services,SME,Programme Expenditure,,
UK Statistics Family,Office for National Statistics,26/04/2021,Exp - Short-Term Contract & Agency Staff - Full Cost,Social Survey Transformation Titchfield,La International,200047,"1,409.76",Information Management Services,SME,Programme Expenditure,,
UK Statistics Family,Office for National Statistics,26/04/2021,Exp - Purchase Of Goods/Services - Contractors,Social Survey Transformation Titchfield,La International,200047,"2,961.76",Information Management Services,SME,Programme Expenditure,,
UK Statistics Family,Office for National Statistics,26/04/2021,Marketing & Media,Stakeholder Engagement And Comms,Manning Gottlieb,200053,"2,634,950.52",Marketing Services,Large,Programme Expenditure,,
UK Statistics Family,Office for National Statistics,26/04/2021,Marketing & Media,Stakeholder Engagement And Comms,Manning Gottlieb,200053,"774,985.64",Marketing Services,Large,Programme Expenditure,,
UK Statistics Family,Office for National Statistics,26/04/2021,Marketing & Media,Stakeholder Engagement And Comms,Manning Gottlieb,200053,"3,975,743.85",Marketing Services,Large,Programme Expenditure,,
UK Statistics Family,Office for National Statistics,26/04/2021,Exp - Purchase Of Goods/Services - IT Contractual Services,Digital Publishing,Methods Business & Digital Technology Ltd,200055,"170,505.00",Information Management Services,Large,Programme Expenditure,,
UK Statistics Family,Office for National Statistics,26/04/2021,Exp - Purchase Of Goods/Services - Contractors,Commercial Services,Gardiner & Theobald LLP,200057,"45,835.00",Temporary Staff,Large,Programme Expenditure,,
UK Statistics Family,Office for National Statistics,26/04/2021,Exp - Purchase Of Goods/Services - Contractors,Commercial Services,Gardiner & Theobald LLP,200057,"101,475.00",Temporary Staff,Large,Programme Expenditure,,
UK Statistics Family,Office for National Statistics,26/04/2021,Exp - Purchase Of Goods And Services Consultants,Commercial Services,Gardiner & Theobald LLP,200057,"3,200.00",Temporary Staff,Large,Programme Expenditure,,
UK Statistics Family,Office for National Statistics,26/04/2021,End User Software And Hardware,Office Of Chief Data And Information,Merkle,200059,"29,568.00",Information Management Services,SME,Programme Expenditure,,
UK Statistics Family,Office for National Statistics,27/04/2021,Buildings Under Construction,Property Newport,Vinci Construction UK Limited,200089,"62,666.54",Facilities Mangement Services,Large,Programme Expenditure,,
UK Statistics Family,Office for National Statistics,27/04/2021,Exp - Purchase Of Goods/Services - IT Contractual Services,CLOUD ARCHITECTURE,Scc,200090,"23,211.00",Information Management Services,Large,Programme Expenditure,,
UK Statistics Family,Office for National Statistics,27/04/2021,End User Software And Hardware,IT Operations,Scc,200090,"2,626.20",Information Management Services,Large,Programme Expenditure,,
UK Statistics Family,Office for National Statistics,27/04/2021,Exp - Purchase Of Goods/Services - Contractors,Digital Delivery,La International,200091,"15,378.62",Information Management Services,SME,Programme Expenditure,,
UK Statistics Family,Office for National Statistics,27/04/2021,Exp - Purchase Of Goods/Services - Contractors,Digital Delivery,La International,200091,"18,454.18",Information Management Services,SME,Programme Expenditure,,
UK Statistics Family,Office for National Statistics,27/04/2021,Exp - Purchase Of Goods/Services - IT Contractual Services,Divisional Management,Granicus LLC,200094,"45,228.00",Information Management Services,Large,Programme Expenditure,,
UK Statistics Family,Office for National Statistics,27/04/2021,Exp - Purchase Of Goods/Services - IT Contractual Services,IT Operations,CTS (Cloud Technology Solutions Ltd),200096,"130,964.40",DST Infrastructure Preparation,Large,Programme Expenditure,,
UK Statistics Family,Office for National Statistics,27/04/2021,EXP - PURCHASE OF GOODS/SERVICES -  NON IT CONTRACTUAL PAYMENTS,Census CCS Data Collection,Adecco UK Limited,200097,"312,326.40",Census People Services Contractual,SME,Programme Expenditure,,
UK Statistics Family,Office for National Statistics,27/04/2021,Marketing & Media,Stakeholder Engagement And Comms,Manning Gottlieb,200098,"1,232,404.03",Marketing Services,Large,Programme Expenditure,,
UK Statistics Family,Office for National Statistics,28/04/2021,Exp - Short-Term Contract & Agency Staff - Full Cost,International Trade And Transactions,Mango Solutions,200307,"6,666.72",Information Management Services,SME,Programme Expenditure,,
UK Statistics Family,Office for National Statistics,28/04/2021,Exp - Short-Term Contract & Agency Staff - Full Cost,International Trade And Transactions,Mango Solutions,200307,"11,146.56",Information Management Services,SME,Programme Expenditure,,
UK Statistics Family,Office for National Statistics,28/04/2021,Exp - Purchase Of Goods/Services - IT Contractual Services,International Trade And Transactions,Mango Solutions,200307,"10,877.28",Information Management Services,SME,Programme Expenditure,,
UK Statistics Family,Office for National Statistics,28/04/2021,Exp - Purchase Of Goods/Services - IT Contractual Services,International Trade And Transactions,Mango Solutions,200307,"38,898.72",Information Management Services,SME,Programme Expenditure,,
UK Statistics Family,Office for National Statistics,28/04/2021,"ICT Outsourcing, Maintenance And Support",IT Operations,Oracle Corporation UK Ltd,200309,"1,207,787.02",Software Licenses,Large,Programme Expenditure,,
UK Statistics Family,Office for National Statistics,28/04/2021,Travel And Subsistence,Corporate Centre,Corporate Travel Management ,200315,"81,945.69",Travel and Accommodation,SME,Programme Expenditure,,
UK Statistics Family,Office for National Statistics,28/04/2021,Travel And Subsistence,Corporate Centre,Calder World of Travel,200317,"176,613.24",Multiple Venue Hire ,SME,Programme Expenditure,,
UK Statistics Family,Office for National Statistics,28/04/2021,"ICT Outsourcing, Maintenance And Support",IT Operations,Computacenter (Uk) Limited,200324,"69,043.23",Information Management Services,Large,Programme Expenditure,,
UK Statistics Family,Office for National Statistics,28/04/2021,FM Contract Payments,Researcher Support And Data Access ,Gresham Office Furniture Limited,200329,"-11,671.46",Office Furniture,SME,Programme Expenditure,,
UK Statistics Family,Office for National Statistics,28/04/2021,Fixtures & Fittings At Cost - Additions,Property Newport,Gresham Office Furniture Limited,200329,"67,171.20",Office Furniture,SME,Programme Expenditure,,
UK Statistics Family,Office for National Statistics,28/04/2021,Fixtures & Fittings At Cost - Additions,Property Titchfield,Gresham Office Furniture Limited,200329,"26,868.48",Office Furniture,SME,Programme Expenditure,,
UK Statistics Family,Office for National Statistics,28/04/2021,Exp - Purchase Of Goods/Services - IT Contractual Services,Tech Delivery Legacy Sp,CTS (Cloud Technology Solutions Ltd),200330,"75,555.00",DST Infrastructure Preparation,Large,Programme Expenditure,,
UK Statistics Family,Office for National Statistics,28/04/2021,EXP - PURCHASE OF GOODS/SERVICES -  NON IT CONTRACTUAL PAYMENTS,Data Collection Service,Good Things Foundation,200335,"54,692.38",Census Assisted Digital Services,SME,Programme Expenditure,,
UK Statistics Family,Office for National Statistics,28/04/2021,Hosting,IT Operations,Amazon Web Services Inc,200337,"70,828.74",Information Management Services,Large,Programme Expenditure,,
UK Statistics Family,Office for National Statistics,28/04/2021,Exp - Short-Term Contract & Agency Staff - Full Cost,Digital Publishing,Methods Business & Digital Technology Ltd,200338,"14,312.16",Information Management Services,Large,Programme Expenditure,,
UK Statistics Family,Office for National Statistics,28/04/2021,Exp - Purchase Of Goods/Services - IT Contractual Services,IT Operations,Methods Business & Digital Technology Ltd,200338,"173,424.00",Information Management Services,Large,Programme Expenditure,,
UK Statistics Family,Office for National Statistics,28/04/2021,Exp - Purchase Of Goods/Services - IT Contractual Services,Digital Delivery,Methods Business & Digital Technology Ltd,200338,"120,837.00",Information Management Services,Large,Programme Expenditure,,
UK Statistics Family,Office for National Statistics,28/04/2021,Exp - Purchase Of Goods/Services - Contractors,Stakeholder Engagement And Comms,Parity Resources Limited,200343,"4,102.53",Information Management Services,Large,Programme Expenditure,,
UK Statistics Family,Office for National Statistics,28/04/2021,Exp - Purchase Of Goods/Services - Contractors,Programme Delivery,Parity Resources Limited,200343,"2,648.40",Information Management Services,Large,Programme Expenditure,,
UK Statistics Family,Office for National Statistics,28/04/2021,Exp - Purchase Of Goods/Services - Contractors,Programme Support,Parity Resources Limited,200343,"2,395.04",Information Management Services,Large,Programme Expenditure,,
UK Statistics Family,Office for National Statistics,28/04/2021,Exp - Purchase Of Goods/Services - Contractors,Covid Infection Survey,Parity Resources Limited,200343,"2,400.00",Information Management Services,Large,Programme Expenditure,,
UK Statistics Family,Office for National Statistics,28/04/2021,Exp - Short-Term Contract & Agency Staff - Full Cost,International Trade And Transactions,Parity Resources Limited,200343,"3,517.80",Information Management Services,Large,Programme Expenditure,,
UK Statistics Family,Office for National Statistics,28/04/2021,Exp - Short-Term Contract & Agency Staff - Full Cost,International Trade And Transactions,Parity Resources Limited,200343,"4,158.00",Information Management Services,Large,Programme Expenditure,,
UK Statistics Family,Office for National Statistics,28/04/2021,Exp - Purchase Of Goods/Services - Contractors,International Trade And Transactions,Parity Resources Limited,200343,"12,816.00",Information Management Services,Large,Programme Expenditure,,
UK Statistics Family,Office for National Statistics,28/04/2021,Exp - Short-Term Contract & Agency Staff - Full Cost,Productivity Research And Professional Development,Parity Resources Limited,200343,"4,004.88",Information Management Services,Large,Programme Expenditure,,
UK Statistics Family,Office for National Statistics,28/04/2021,Exp - Short-Term Contract & Agency Staff - Full Cost,Recruitment ,Parity Resources Limited,200343,"1,251.36",Information Management Services,Large,Programme Expenditure,,
UK Statistics Family,Office for National Statistics,28/04/2021,Exp - Purchase Of Goods/Services - Contractors,INTEGRATED DATA STRATEGY AND DELIVERY,Parity Resources Limited,200343,"3,246.30",Information Management Services,Large,Programme Expenditure,,
UK Statistics Family,Office for National Statistics,28/04/2021,Exp - Short-Term Contract & Agency Staff - Full Cost,Data Architecture,Parity Resources Limited,200343,"1,318.68",Information Management Services,Large,Programme Expenditure,,
UK Statistics Family,Office for National Statistics,28/04/2021,Exp - Purchase Of Goods/Services - Contractors,Data Architecture,Parity Resources Limited,200343,"5,604.05",Information Management Services,Large,Programme Expenditure,,
UK Statistics Family,Office for National Statistics,28/04/2021,Exp - Purchase Of Goods/Services - Contractors,IT Operations,Parity Resources Limited,200343,"5,725.22",Information Management Services,Large,Programme Expenditure,,
UK Statistics Family,Office for National Statistics,28/04/2021,Exp - Purchase Of Goods/Services - Contractors,Digital Delivery,Parity Resources Limited,200343,"6,861.00",Information Management Services,Large,Programme Expenditure,,
UK Statistics Family,Office for National Statistics,28/04/2021,Exp - Purchase Of Goods/Services - Contractors,Digital Delivery,Parity Resources Limited,200343,"2,178.72",Information Management Services,Large,Programme Expenditure,,
UK Statistics Family,Office for National Statistics,28/04/2021,Exp - Purchase Of Goods/Services - Contractors,Business Statistics Transformation,Parity Resources Limited,200343,"8,971.20",Information Management Services,Large,Programme Expenditure,,
UK Statistics Family,Office for National Statistics,28/04/2021,Exp - Short-Term Contract & Agency Staff - Full Cost,Social Survey Transformation Titchfield,Parity Resources Limited,200343,823.06,Information Management Services,Large,Programme Expenditure,,
UK Statistics Family,Office for National Statistics,28/04/2021,Exp - Purchase Of Goods/Services - Contractors,Business Architecture,LA FOSSE ASSOCIATES LIMITED,200347,"30,958.94",Information Management Services,Large,Programme Expenditure,,
UK Statistics Family,Office for National Statistics,28/04/2021,Exp - Purchase Of Goods/Services - Contractors,Business Architecture,LA FOSSE ASSOCIATES LIMITED,200347,"6,375.00",Information Management Services,Large,Programme Expenditure,,
UK Statistics Family,Office for National Statistics,28/04/2021,Exp - Purchase Of Goods/Services - Contractors,Consultancy Management,LA FOSSE ASSOCIATES LIMITED,200347,"6,450.00",Information Management Services,Large,Programme Expenditure,,
UK Statistics Family,Office for National Statistics,28/04/2021,Exp - Purchase Of Goods/Services - Contractors,Programme Support,LA FOSSE ASSOCIATES LIMITED,200347,"2,200.00",Information Management Services,Large,Programme Expenditure,,
UK Statistics Family,Office for National Statistics,28/04/2021,Exp - Purchase Of Goods/Services - Contractors,Digital Publishing,LA FOSSE ASSOCIATES LIMITED,200347,"4,350.00",Information Management Services,Large,Programme Expenditure,,
UK Statistics Family,Office for National Statistics,28/04/2021,Exp - Purchase Of Goods/Services - Contractors,Digital Publishing,LA FOSSE ASSOCIATES LIMITED,200347,"2,880.00",Information Management Services,Large,Programme Expenditure,,
UK Statistics Family,Office for National Statistics,28/04/2021,Exp - Purchase Of Goods/Services - Contractors,Data Architecture,LA FOSSE ASSOCIATES LIMITED,200347,"4,050.00",Information Management Services,Large,Programme Expenditure,,
UK Statistics Family,Office for National Statistics,28/04/2021,Exp - Purchase Of Goods/Services - Contractors,Tech Delivery Legacy Sp,LA FOSSE ASSOCIATES LIMITED,200347,"2,880.00",Information Management Services,Large,Programme Expenditure,,
UK Statistics Family,Office for National Statistics,28/04/2021,Exp - Purchase Of Goods/Services - Contractors,Tech Delivery Legacy Sp,LA FOSSE ASSOCIATES LIMITED,200347,"5,760.00",Information Management Services,Large,Programme Expenditure,,
UK Statistics Family,Office for National Statistics,28/04/2021,Exp - Purchase Of Goods/Services - Contractors,Tech Delivery Legacy Sp,LA FOSSE ASSOCIATES LIMITED,200347,"2,880.00",Information Management Services,Large,Programme Expenditure,,
UK Statistics Family,Office for National Statistics,29/04/2021,Exp - Purchase Of Goods And Services Consultants,Stakeholder Engagement And Comms,La International,200364,"3,457.78",Information Management Services,SME,Programme Expenditure,,
UK Statistics Family,Office for National Statistics,29/04/2021,Exp - Purchase Of Goods/Services - Contractors,Business Architecture,La International,200364,"3,524.22",Information Management Services,SME,Programme Expenditure,,
UK Statistics Family,Office for National Statistics,29/04/2021,Exp - Purchase Of Goods/Services - Contractors,Business Architecture,La International,200364,"2,936.85",Information Management Services,SME,Programme Expenditure,,
UK Statistics Family,Office for National Statistics,29/04/2021,Exp - Purchase Of Goods/Services - Contractors,Testing,La International,200364,"27,841.37",Information Management Services,SME,Programme Expenditure,,
UK Statistics Family,Office for National Statistics,29/04/2021,Exp - Purchase Of Goods/Services - Contractors,Testing,La International,200364,"1,815.52",Information Management Services,SME,Programme Expenditure,,
UK Statistics Family,Office for National Statistics,29/04/2021,Exp - Purchase Of Goods/Services - Contractors,HALE,La International,200364,"2,413.75",Information Management Services,SME,Programme Expenditure,,
UK Statistics Family,Office for National Statistics,29/04/2021,Exp - Short-Term Contract & Agency Staff - Full Cost,Recruitment ,La International,200364,882.82,Information Management Services,SME,Programme Expenditure,,
UK Statistics Family,Office for National Statistics,29/04/2021,Exp - Purchase Of Goods/Services - Contractors,Data Architecture,La International,200364,"2,466.96",Information Management Services,SME,Programme Expenditure,,
UK Statistics Family,Office for National Statistics,29/04/2021,Exp - Purchase Of Goods/Services - Contractors,Data Architecture,La International,200364,"3,588.30",Information Management Services,SME,Programme Expenditure,,
UK Statistics Family,Office for National Statistics,29/04/2021,Exp - Purchase Of Goods/Services - Contractors,Data Architecture,La International,200364,"3,524.22",Information Management Services,SME,Programme Expenditure,,
UK Statistics Family,Office for National Statistics,29/04/2021,Exp - Purchase Of Goods/Services - Contractors,CLOUD ARCHITECTURE,La International,200364,"3,844.62",Information Management Services,SME,Programme Expenditure,,
UK Statistics Family,Office for National Statistics,29/04/2021,Exp - Short-Term Contract & Agency Staff - Full Cost,Stakeholder Engagement And Comms,Parity Resources Limited,200371,"28,590.76",Information Management Services,Large,Programme Expenditure,,
UK Statistics Family,Office for National Statistics,29/04/2021,Exp - Purchase Of Goods And Services Consultants,Digital Publishing,Parity Resources Limited,200371,"14,353.92",Information Management Services,Large,Programme Expenditure,,
UK Statistics Family,Office for National Statistics,29/04/2021,Exp - Short-Term Contract & Agency Staff - Full Cost,Data Architecture,Parity Resources Limited,200371,586.08,Information Management Services,Large,Programme Expenditure,,
UK Statistics Family,Office for National Statistics,29/04/2021,Exp - Purchase Of Goods/Services - Contractors,Testing,LA FOSSE ASSOCIATES LIMITED,200373,"3,600.00",Information Management Services,Large,Programme Expenditure,,
UK Statistics Family,Office for National Statistics,29/04/2021,Exp - Purchase Of Goods/Services - Contractors,Digital Publishing,LA FOSSE ASSOCIATES LIMITED,200373,"23,490.00",Information Management Services,Large,Programme Expenditure,,
UK Statistics Family,Office for National Statistics,29/04/2021,Marketing & Media,Stakeholder Engagement And Comms,M&C Saatchi UK Ltd,200375,"28,089.65",Marketing Services,Large,Programme Expenditure,,
UK Statistics Family,Office for National Statistics,08/04/2021,Exp - Purchase Of Goods/Services - Incentive Payments,Covid Infection Survey,Sodexo Motivation Solutions U.K. ltd,30002657,"2,183,794.60",Survey Response Incentive Vouchers,Large,Programme Expenditure,,
UK Statistics Family,Office for National Statistics,08/04/2021,Exp - Purchase Of Goods/Services - Incentive Payments,Covid Infection Survey,Sodexo Motivation Solutions U.K. ltd,30002658,"113,735.84",Survey Response Incentive Vouchers,Large,Programme Expenditure,,
UK Statistics Family,Office for National Statistics,08/04/2021,Specialist User Software And Hardware,Testing,BrowserStack inc,30002659,"26,054.75",Software Licenses,SME,Programme Expenditure,,
UK Statistics Family,Office for National Statistics,09/04/2021,Exp - Purchase Of Goods/Services - Incentive Payments,Covid Infection Survey,Sodexo Motivation Solutions U.K. ltd,30002668,"1,923,992.92",Survey Response Incentive Vouchers,Large,Programme Expenditure,,
UK Statistics Family,Office for National Statistics,13/04/2021,Exp - Purchase Of Goods/Services - Incentive Payments,Covid Infection Survey,Sodexo Motivation Solutions U.K. ltd,30002670,"28,884.00",Survey Response Incentive Vouchers,Large,Programme Expenditure,,
UK Statistics Family,Office for National Statistics,13/04/2021,Exp - Purchase Of Goods/Services - Incentive Payments,Covid Infection Survey,Sodexo Motivation Solutions U.K. ltd,30002671,"44,236.80",Survey Response Incentive Vouchers,Large,Programme Expenditure,,
UK Statistics Family,Office for National Statistics,15/04/2021,Exp - Purchase Of Goods/Services - Incentive Payments,Covid Infection Survey,Sodexo Motivation Solutions U.K. ltd,30002672,"54,225.63",Survey Response Incentive Vouchers,Large,Programme Expenditure,,
UK Statistics Family,Office for National Statistics,19/04/2021,Stationery,Lodgecard,Royal Bank of Scotland,30002681,"1,120.28",Multiple Procurement Card Purchases  - Stationery ,Large,Programme Expenditure,,
UK Statistics Family,Office for National Statistics,19/04/2021,Other Goods And Services,GPC,Royal Bank of Scotland,30002681,"44,662.83",Multiple Procurement Card Purchases - other goods/services  ,Large,Programme Expenditure,,
UK Statistics Family,Office for National Statistics,19/04/2021,Other Goods And Services,Policy Secretariat,United Nations Economic Commission for Europe,30002683,"25,441.23",United Nations Support,Large,Programme Expenditure,,
UK Statistics Family,Office for National Statistics,19/04/2021,Exp - Purchase Of Goods/Services - Incentive Payments,Covid Infection Survey,Sodexo Motivation Solutions U.K. ltd,30002684,"2,278,626.26",Survey Response Incentive Vouchers,Large,Programme Expenditure,,
UK Statistics Family,Office for National Statistics,19/04/2021,Exp - Purchase Of Goods/Services - Incentive Payments,Census & Soc Methodology Dd,Sodexo Motivation Solutions U.K. ltd,30002684,50.6,Survey Response Incentive Vouchers,Large,Programme Expenditure,,
UK Statistics Family,Office for National Statistics,20/04/2021,Exp - Purchase Of Goods/Services - Incentive Payments,Covid Infection Survey,Sodexo Motivation Solutions U.K. ltd,30002686,"39,958.56",Survey Response Incentive Vouchers,Large,Programme Expenditure,,
UK Statistics Family,Office for National Statistics,22/04/2021,Exp - Purchase Of Goods/Services - Incentive Payments,Covid Infection Survey,Sodexo Motivation Solutions U.K. ltd,30002689,"83,521.33",Survey Response Incentive Vouchers,Large,Programme Expenditure,,
UK Statistics Family,Office for National Statistics,23/04/2021,Exp - Purchase Of Goods/Services - Incentive Payments,Covid Infection Survey,Sodexo Motivation Solutions U.K. ltd,30002694,"2,852,294.48",Survey Response Incentive Vouchers,Large,Programme Expenditure,,
UK Statistics Family,Office for National Statistics,27/04/2021,Exp - Purchase Of Goods/Services - Incentive Payments,Covid Infection Survey,Sodexo Motivation Solutions U.K. ltd,30002702,"27,564.83",Survey Response Incentive Vouchers,Large,Programme Expenditure,,
UK Statistics Family,Office for National Statistics,27/04/2021,Telecoms,CLOUD ARCHITECTURE,North PB Ltd,30002726,"35,809.82",Information Management Services,SME,Programme Expenditure,,
UK Statistics Family,Office for National Statistics,29/04/2021,Exp - Purchase Of Goods/Services - Incentive Payments,Covid Infection Survey,Sodexo Motivation Solutions U.K. ltd,30002727,"35,212.32",Survey Response Incentive Vouchers,Large,Programme Expenditure,,
UK Statistics Family,Office for National Statistics,29/04/2021,Exp - Purchase Of Goods/Services - Incentive Payments,Covid Infection Survey,Sodexo Motivation Solutions U.K. ltd,30002728,"137,714.56",Survey Response Incentive Vouchers,Large,Programme Expenditure,,
UK Statistics Family,Office for National Statistics,30/04/2021,Exp - Purchase Of Goods/Services - Incentive Payments,Covid Infection Survey,Sodexo Motivation Solutions U.K. ltd,30002731,"2,079,412.44",Survey Response Incentive Vouchers,Large,Programme Expenditure,,
UK Statistics Family,Office for National Statistics,30/04/2021,Marketing & Media,Stakeholder Engagement And Comms,M&C Saatchi UK Ltd,30002742,"454,425.71",Marketing Services,Large,Programme Expenditure,,
UK Statistics Family,Office for National Statistics,30/04/2021,Marketing & Media,Stakeholder Engagement And Comms,Manning Gottlieb,30002743,"370,376.11",Marketing Services,Large,Programme Expenditure,,
UK Statistics Family,Office for National Statistics,30/04/2021,Marketing & Media,Stakeholder Engagement And Comms,Manning Gottlieb,30002743,"2,128,901.31",Marketing Services,Large,Programme Expenditure,,
UK Statistics Family,Office for National Statistics,30/04/2021,Surveys,Covid Infection Survey,IQVIA Limited,30002744,"1,248,580.84",Statistical Services,Large,Programme Expenditure,,
UK Statistics Family,Office for National Statistics,30/04/2021,EXP - PURCHASE OF GOODS/SERVICES -  NON IT CONTRACTUAL PAYMENTS,Data Collection Service,HH Associates Ltd,30002748,"152,030.39",Print and Post Services,SME,Programme Expenditure,,
,,,,,,,"59,374,167.62",,,
